Workbook

Sheet Intro
A1: 0
C2: Alternative Evaluation | P2: STARTING DAY | R2: Do you need free browsing the program file? | T2: Exchange Rates | X2: CAPITAL EXPENCES | Z2: Single Prs | AA2: Total
D3: EXPECTED FINAL RESULT OF PRE DESIGN | P3: Click down | T3: 1 | U3: 0.01625 | V3: =V4/T4 -> 1.219512195 | W3: 1 | X3: TS 110/20 kV with 2 ETR Documentation with state institutions, preparation and revision of basic design, building permit | Y3: Nr | Z3: € | AA3: €
C4: SALES, Loan Life | D4: =SUM(D5:D8) ->  | E4: =SUM(E5:E8) ->  | J4: Skopje, N. Macedonia | T4: 0.82 | V4: 1 | Y4: 1 | Z4: 150000 | AA4: =Y4*Z4 -> 150000
C5: Tomatoes (T ) | D5: =ROUND(U23,-2) ->  | E5: =D5*$U$3 ->  | F5: BROWSING | J5: Represented by local outsourcing east electric company Ltd., Bulgaria with courtesy of | W5: =W3+1 -> 2 | X5: Постројка ТС 110/20kV со 2 ДВ + 2 ТР полиња и 2 ЕТР
C6: Cucumbers (C ) | D6: =ROUND(U25,-2) ->  | E6: =D6*$U$3 ->  | F6: OPERATIONS | W6: 2.1. | X6: Градежни работи парче | Y6: 1 | Z6: 814000 | AA6: =Y6*Z6 -> 814000
C7: By/3th products | D7: =L27+N27+P27+R27+T27+#REF! ->  | E7: =D7*$U$3 ->  | J7: Washington, DC, U.S.A. | P7: =TODAY() -> 2019-07-15 | W7: 2.2. | X7: 110 kV построение парче | Y7: 2 | Z7: 300000 | AA7: =Y7*Z7 -> 600000
C8: Market Products | D8: =U29 -> 0 | E8: =D8*$U$3 -> 0 | G8: ←Level 5 → | I8: Zoom↓ | J8: Risk assessment and management: go to Bayes Theorem | W8: 2.3. | X8: 20 kV построение парче | Y8: 1 | Z8: 200000 | AA8: =Y8*Z8 -> 200000
A9: Click the picture  to increase it | C9: COSTS, Total | D9: =SUM(D10:D11) ->  | E9: =SUM(E10:E11) ->  | G9: ←Level 4 → | J9: Sensitivity analysis | M9: ←Zoom 100 PC screen resolution: 1920 x 1080 | W9: 2.4. | X9: НН инсталација, управување и релејна заштиа парче | Y9: 1 | Z9: 350000 | AA9: =Y9*Z9 -> 350000
C10: Variable costs | D10: =BUDGET!C23 ->  | E10: =D10*$U$3 ->  | G10: ←Level 3 | J10: Resolution 1680 x 1050. For lower PC screen resolution try this → | W10: 2.5. | X10: Eнергетски трансформатори 40 МВА | Y10: 2 | Z10: 700000 | AA10: =Y10*Z10 -> 1400000
A11: T | B11: C | C11: Fixed costs | D11: =BUDGET!C24 ->  | E11: =D11*$U$3 ->  | G11: ←Level 2 | I11: Zoom 143 | J11: Cash-flow Pro-forma Budgeting | N11: 1920 x 1080 | X11: SubTotal: | AA11: =SUM(AA6:AA10) -> 3364000
A12: By-products | C12: Revenues /Costs | D12: =ROUND(D4-D9,-3) ->  | E12: =ROUND(E4-E9,-3) ->  | G12: ←Level 1 | I12: → | J12: Capital Goods and Services | N12: Select Zoom 100 if Resolution of your display is lesser than 1600 x 900. | W12: 3 | X12: Разводни постројки
C13: Marketing / RM | D13: =BUDGET!C25 ->  | E13: =D13*$U$3 ->  | G13: ←Level 0 | I13: Basic data, invariant for this Project | W13: 3.1. | X13: 20kV Разводна постројка Алумина | Y13: 1 | Z13: 200000 | AA13: =Y13*Z13 -> 200000
C14: From market Bad, is selected over underground water resource Increase / Decrease | E14: =E6*(1-E16) ->  | W14: 3.2. | X14: 20kV Разводна постројка Лимак | Y14: 1 | Z14: 200000 | AA14: =Y14*Z14 -> 200000
A15: Efficiency of selling own products | E15: =E14*(1+E17) ->  | H15: Level Go dowm | W15: 3.3. | X15: 20kV Разводна постројка Избегово | Y15: 1 | Z15: 200000 | AA15: =Y15*Z15 -> 200000
A16: Increased sale of final products | C16: 109 | D16: 92 | E16: =(D16-C16)/C16 -> -0.1559633028 | K16: Electric | O16: t p.a./ 1 ha | P16: relative yield | Q16: Demand increases | W16: 3.4. | X16: Документација ,одобренија ,испитувања… | Y16: 1 | Z16: 150000 | AA16: =Y16*Z16 -> 150000
A17: Increased the sale price, € | C17: 3.2 | D17: 4.3 | E17: =(D17-C17)/C17 -> 0.34375 | F17: Click the image to reveal the final results | K17: Power | M17: 100 kVA | O17: t p.a. Project | R17: Business Plan | X17: SubTotal: | AA17: =SUM(AA13:AA16) -> 750000
C18: PRICING - ELECTRICITY | E18: MKD/kWh | F18: €/kWh | K18: 1st Stage: | L18: 0.7 | M18: =M17*L18 ->  | N18: =U37/M18 ->  | O18: t p.a./ 1 ha | P18: Max size: | W18: 4 | X18: Планирани 20 kV кабловски врски
A19: A. EVN MAKEDONIJA AD, Average supply. Prc. for tariff consumers: | E19: 4.731 | F19: =$U$3*E19 -> 0.07687875 | I19: Loans A + B - D Investment, TOTAL: | J19: =Bayes!P21/100 -> 0.021 | K19: 2nd Stage: | L19: =100%-L18 -> 0.3 | M19: =M17*L19 ->  | N19: =U38/M19 ->  | O19: t p.a./ 1 ha | P19: 13.2384 | W19: 4.1. | X19: 20kV кабловски врски до Алумина | Y19: 2 | Z19: 200000 | AA19: =Y19*Z19 -> 400000
A20: AD ELEM - Skopje Production price | E20: 2.3704 | F20: =$U$3*E20 -> 0.038519 | J20: FINAL PRODUCTS FOR SALE | K20: Other≈ | L20: =100%-L18-L19 -> 0 | M20: =M17*L20 ->  | W20: 4.2. | X20: 20kV кабловски врски од Алумина / Избегово | Y20: 2 | Z20: 275000 | AA20: =Y20*Z20 -> 550000
A21: AD MEPSO - Skopje Transmission tariff | E21: 0.2722 | F21: =$U$3*E21 -> 0.00442325 | J21: Sales Nr of Yrs: | N21: =BUDGET!G41 -> 1 | O21: 2, 3, | R21: =BUDGET!M41 -> 4 | T21: =BUDGET!O41 -> 5 | W21: 4.3. | X21: 20kV кабловски врски до Алумина / Лимак | Y21: 2 | Z21: 275000 | AA21: =Y21*Z21 -> 550000
A22: T.O.M. - Skopje Tariff for marketing, organization and management | E22: 0.0187 | F22: =$U$3*E22 -> 0.000303875 | J22: Products | K22: kWh/Yr | L22: Total, € | M22: kWh/Yr | N22: Total, € | Q22: kWh/Yr | R22: Total, € | S22: kWh/Yr | T22: Total, € | U22: Check | W22: 4.4. | X22: Документација ,одобренија ,испитувања… | Y22: 1 | Z22: 150000 | AA22: =Y22*Z22 -> 150000
A23: B. Price of electric energy: | D23: ELEM + MEPSO + T.O.M. = Prc. of 110 kV: | E23: =SUM(E20:E22) -> 2.6613 | F23: =SUM(F20:F22) -> 0.043246125 | K23: =U37 ->  | L23: =U40 ->  | M23: =U37 ->  | N23: =U40 ->  | O23: . . . . . . | Q23: =U37 ->  | R23: =U40 ->  | S23: =U37 ->  | T23: =U40 ->  | U23: =T23*T21 ->  | X23: SubTotal: | AA23: =SUM(AA19:AA22) -> 1650000
D24: Middle value of payment (A - B): | E24: =E19-E23 -> 2.0697 | F24: =F19-F23 -> 0.033632625 | W24: 5 | X24: 20/04 kV трансформаторски станици
K25: =U38 ->  | L25: =U41 ->  | M25: =U38 ->  | N25: =U41 ->  | O25: . . . . . . | Q25: =U38 ->  | R25: =U41 ->  | S25: =U38 ->  | T25: =U41 ->  | U25: =T25*T21 ->  | W25: 5.1. | X25: Документација парче | Y25: 1 | Z25: 80000 | AA25: =Y25*Z25 -> 80000
D26: € p.h | E26: € p.h | F26: € p.h | J26: Outcome: | W26: 5.2. | X26: комплет 1000 кVА (апроксимирано) | Y26: 40 | Z26: 40000 | AA26: =Y26*Z26 -> 1600000
C27: 1 MW | D27: 10 | E27: 40 | F27: 80 | O27: . . . . . . | U27: =T27*T21 -> 0 | X27: SubTotal: | AA27: =SUM(AA25:AA26) -> 1680000
C28: =F24 -> 0.033632625 | D28: =$C$28*D27*1000 -> 336.32625 | E28: =$C$28*E27*1000 -> 1345.305 | F28: =$C$28*F27*1000 -> 2690.61 | J28: 2ndstage of project | W28: 6 | X28: Откуп на земјиште за ТС | Y28: 1 | Z28: 300000 | AA28: =Y28*Z28 -> 300000
C29: p.Yr → | D29: =D28*24*365 -> 2946217.95 | E29: =E28*24*365 -> 11784871.8 | F29: 23569743.6 | L29: =BUDGET!G49+BUDGET!H49 -> 0.5 | N29: =BUDGET!I49+BUDGET!J49 -> 800 | O29: . . . . . . | R29: =BUDGET!N49+BUDGET!O49 -> 0 | T29: =BUDGET!P49+BUDGET!Q49 -> 0 | U29: =S29*T21 -> 0 | W29: =W28+1 -> 7 | X29: Постројка ТС 110/20kV со 2 ДВ + 2 ТР+ Спојно полиња
J30: Outcome: | W30: 7.1. | X30: Градежни работи парче | Y30: 1 | Z30: 814000 | AA30: =Y30*Z30 -> 814000
J31: Budget, TOTAL | K31: =L23+L25+L27+L29 ->  | M31: =N23+N25+N27+N29 ->  | O31: . . . . . . | Q31: =R23+R25+R27+R29 ->  | S31: =T23+T25+T27+S29 ->  | U31: =U23+U25+U27+U29 ->  | W31: 7.2. | X31: 110 kV построение парче | Y31: 5 | Z31: 400000 | AA31: =Y31*Z31 -> 2000000
J32: Outcome, TOTAL | K32: =L24+L26+L28+L30 -> 0 | M32: =N24+N26+N28+N30 -> 0 | O32: =P24+P26+P28+P30 -> 0 | Q32: =R24+R26+R28+R30 -> 0 | S32: =T24+T26+T28+T30 -> 0 | W32: 7.3. | X32: 20 kV построение парче | Y32: 1 | Z32: 200000 | AA32: =Y32*Z32 -> 200000
A33: The applied color and image visualizations in all worksheets are designed for faster and easier perception of the figures and formulas, as well as for their long term remembering for project financing success. | U33: ¯ Basic unchangeable values for transfer to upper level Ö | V33: Average | W33: 7.4. | X33: НН инсталација, управување и релејна заштиа парче | Y33: 1 | Z33: 550000 | AA33: =Y33*Z33 -> 550000
H34: Sales Mo: | I34: 1 | J34: =I34+1 -> 2 | K34: =J34+1 -> 3 | L34: 4 | M34: 5 | N34: 6 | O34: 7 | P34: 8 | Q34: 9 | R34: 10 | S34: 11 | T34: 12 | U34: Total/Average | W34: 7.5. | X34: Eнергетски трансформатори 12,7 МVА (сервисирани) | Y34: 2 | Z34: 50000 | AA34: =Y34*Z34 -> 100000
H35: Single €kWh | I35: =C51 -> 1.6443 | J35: =C52 -> 2.6892 | K35: =C53 -> 2.0898 | L35: =C54 -> 1.5066 | M35: =C55 -> 1.1421 | N35: =C56 -> 0.7128 | O35: =C57 -> 0.5988735 | P35: =C58 -> 0.5427 | Q35: =C59 -> 0.7128 | R35: =C60 -> 1.4256 | S35: =C61 -> 1.0935 | T35: =C62 -> 1.4256 | U35: =SUM(I35:T35)/12 -> 1.298656125 | V35: /kg | X35: SubTotal: | AA35: =SUM(AA30:AA34) -> 3664000
H36: Single kWh | I36: =F51 -> 1.344 | J36: =F52 -> 1.1928 | K36: =F53 -> 1.3524 | L36: =F54 -> 1.4532 | M36: =F55 -> 1.0248 | N36: =F56 -> 0.6636 | O36: =F57 -> 0.5124 | P36: =F58 -> 0.6468 | Q36: =F59 -> 1.2432 | R36: =F60 -> 0.84 | S36: =F61 -> 1.848 | T36: =F62 -> 0.7476 | U36: =SUM(I36:T36)/12 -> 1.0724 | V36: /kg | W36: 8 | X36: Закупуване на подстанцията | Y36: 1 | Z36: 500000 | AA36: =Y36*Z36 -> 500000
H37: This case kWh | I37: =A51*$M$18*10000 ->  | J37: =A52*$M$18*10000 ->  | K37: =A53*10000*$M$18 ->  | L37: =A54*$M$18*10000 ->  | M37: =A55*$M$18*10000 ->  | N37: =A56*$M$18*10000 ->  | O37: =A57*$M$18*10000 ->  | P37: =A58*$M$18*10000 ->  | Q37: =A59*$M$18*10000 ->  | R37: =A60*$M$18*10000 ->  | S37: =A61*$M$18*10000 ->  | T37: =A62*$M$18*10000 ->  | U37: =SUM(I37:T37)/1000 ->  | V37: /ha | W37: 9 | X37: Първо частично зплащане на разходи за опазване поддръжка на обекта през последните 20 години | Y37: 1 | Z37: 200000 | AA37: =Y37*Z37 -> 200000
H38: This case kWh | I38: =D51*M19*10000 ->  | J38: =D52*$M$19*10000 ->  | K38: =D53*10000*$M$19 ->  | L38: =D54*$M$19*10000 ->  | M38: =D55*$M$19*10000 ->  | N38: =D56*$M$19*10000 ->  | O38: =D57*$M$19*10000 ->  | P38: =D58*$M$19*10000 ->  | Q38: =D59*$M$19*10000 ->  | R38: =D60*$M$19*10000 ->  | S38: =D61*$M$19*10000 ->  | T38: =D62*$M$19*10000 ->  | U38: =SUM(I38:T38)/1000 ->  | V38: /ha | W38: 10 | X38: Фин. модел за проектно финансиране | Y38: 1 | Z38: 350000 | AA38: =Y38*Z38 -> 350000
H39: This case TOTAL | I39: =I37+I38 ->  | K39: =K37+K38 ->  | L39: =L37+L38 ->  | N39: =N37+N38 ->  | U39: =SUM(U37:U38) ->  | V39: =IF(SUM(I39:T39)/1000=U39,TRUE,FALSE) ->  | X39: ТОТАL: | AA39: =AA4+AA11+AA17+AA23+AA27+AA28+AA35+AA36+AA37+AA38 -> 12608000
H40: This caseTsales, € | I40: =I37*I35 ->  | K40: =K37*K35 ->  | O40: =O37*O35 ->  | U40: =SUM(I40:T40) ->  | V40: /ann
H41: This caseC sales, € | I41: =I38*I36 ->  | J41: =J38*J36 ->  | K41: =K38*K36 ->  | L41: =L38*L36 ->  | M41: =M38*M36 ->  | N41: =N38*N36 ->  | U41: =SUM(I41:T41) ->  | V41: /ann
H42: Costs ↓ | T42: Sales: | U42: =SUM(U40:U41) ->  | V42: /ann
H43: Pell+Trans.Heating | I43: =N67 ->  | J43: =N68 ->  | K43: =N69 ->  | L43: =N70 ->  | M43: =N71 ->  | N43: =N72 ->  | O43: =N73 ->  | P43: =N74 ->  | Q43: =N75 ->  | R43: =N76 ->  | S43: =N77 ->  | T43: =N78 ->  | U43: =SUM(I43:T43) ->  | V43: /ann
C44: For Developer's use only | H44: This | I44: =I37*$G$69+I38*$G$72 ->  | U44: =SUM(I44:T44) ->  | V44: /ann
H45: This Running cost | U45: =SUM(I45:T45) -> 0 | V45: /ann
A46: Alumina | B46: I N F L O W D A T A W O R K I N G P A N E L | H46: Others fromarket | V46: /ann
C47: DATA ENTRY PANEL FOR THE BASE Level 0 | T47: I N C R E A S E : | U47: Æ VAT | V47: Æ Own Funds | X47: Prc OwnFunds
A48: ↑ Increase | B48: C %+4% | C48: Potential YIELD and | D48: SALES | H48: COSTS of fertilizer, seeding and substrate | K48: Water p.a. | L48: Consumption | M48: Electricity | N48: This | O48: Project | P48: Budgeted values + VAT revivable | S48: =S49+S57 ->  | T48: =M17 -> 100 kVA | U48: =U49+U57 ->  | V48: =V49+V57 ->  | X48: =V48*T58 -> 
A49: price option | B49: Price | C49: =-IF(D50=0,0,(D50+3)/100) -> -0.19 | D49: Yield C kg/m2 | E49: Price ↑ | F49: =-D50/100 -> -0.16 | G49: These data are based on the EU FSS | H49: 13.4 | I49: ←Total area as base | K49: 5 | L49: liter p.m2 | M49: 6 | N49: Water + | O49: Electricity | P49: Local Costs | Q49: ↓ | R49: 1 | S49: =SUM(S51:S56)+S65 ->  | T49: VAT | U49: =SUM(U50:U56) ->  | V49: =SUM(V50:V56) ->  | X49: =SUM(X50:X56) -> 
A50: Yield T kg/m2 | B50: ↑ € /kg | C50: € /kg | D50: 16 | E50: € /kg | H50: This project ↓ | I50: €/ Yr/ ha | K50: 0.3 | L50: € p. liter | M50: 0.06 | O50: ↓ | P50: Permits & Construction, F26 | S50: 50000 | T50: 0 | U50: =S51*(1+$T$50) -> 302000 | V50: =U50*(1+T$61) -> 302000 | X50: =V50*(1-$T$58) -> 302000
A51: 0 | B51: 2.03 | C51: =B51*(1+$C$49) -> 1.6443 | D51: 0 | E51: 1.6 | F51: =E51*(1+$F$49) -> 1.344 | H51: ↓ ↓ . | K51: 0.218 | L51: =$K$49*$K$50*$T$48*K51*10000 ->  | M51: =K51*$M$49*$M$50*$T$48*10000 ->  | P51: Terrain, infrastructure, F27 | R51: 0.045 | S51: =ROUNDUP(R51*S58,-3) -> 302000 | T51: TOTAL | U51: =S51*(1+$T$50) -> 302000 | V51: =U51*(1+T$61) -> 302000 | X51: =V51*(1-$T$58) -> 302000
A52: 0 | B52: 3.32 | C52: =B52*(1+$C$49) -> 2.6892 | D52: =34944/10000 -> 3.4944 | E52: 1.42 | F52: =E52*(1+$F$49) -> 1.1928 | H52: =I84 -> 113440 | I52: -0.05 | J52: =I53/$H$49 -> 8042.38806 | K52: 0.175 | L52: =$K$49*$K$50*$T$48*K52*10000 ->  | M52: =$M$49*$M$50*$T$48*10000*K52 ->  | P52: Others unforeseen exp. F29 | R52: 9000 | S52: =R52*$T$48 ->  | T52: =U48-S48 ->  | V52: =U52*(1+T$61) ->  | X52: =V52*(1-$T$58) -> 
A53: 4.4 | B53: 2.58 | C53: =B53*(1+$C$49) -> 2.0898 | D53: =62918/10000 -> 6.2918 | E53: 1.61 | F53: =E53*(1+$F$49) -> 1.3524 | H53: =$J$52*M18 ->  | I53: =H52*(1+I52) -> 107768 | K53: 0.141 | L53: =$K$49*$K$50*$T$48*K53*10000 ->  | P53: Truck transport, F31 | R53: =IF($T$48>10,A94,IF($T$48<=5,25000,35000)) -> 180000 | S53: 0 | T53: Local cost | U53: 0 | V53: 0 | X53: =V53*(1-$T$58) -> 0
A54: 8.6 | B54: 1.86 | C54: =B54*(1+$C$49) -> 1.5066 | D54: =74051/10000 -> 7.4051 | E54: 1.73 | F54: =E54*(1+$F$49) -> 1.4532 | H54: =J52*M19 ->  | K54: 0.064 | L54: =$K$49*$K$50*$T$48*10000*K54 ->  | P54: BizPlan, Fin. modeling, F33 | R54: =IF($T$48>10,300000,IF($T$48<=5,80000,240000)) -> 300000 | S54: =R54 -> 300000 | T54: Exp-Imp | U54: 300000 | V54: 300000 | X54: =V64*(1-$T$58) -> 240000
A55: 9.7 | B55: 1.41 | C55: =B55*(1+$C$49) -> 1.1421 | D55: =24102/10000 -> 2.4102 | E55: 1.22 | F55: 1.0248 | H55: ↓ ↓ . | K55: 0.01 | N55: 6 Mo | O55: SubTOTAL | P55: Risk Assessment, F34 | R55: =IF($T$48>10,60000,IF($T$48<=5,20000,28000)) -> 60000 | S55: =R55 -> 60000 | T55: 59572.8 | U55: 60000 | V55: 60000 | X55: =V54*(1-$T$58) -> 300000
A56: 10.3 | B56: 0.88 | C56: 0.7128 | D56: =107055/10000 -> 10.7055 | E56: 0.79 | F56: 0.6636 | H56: =I85 -> 275200 | I56: =H56*(1+I52) -> 261440 | J56: =I56/$H$49 -> 19510.44776 | K56: 0.01 | L56: =$K$49*$K$50*$T$48*10000*K56 ->  | N56: 1 → | O56: =SUM(L51:L56)+SUM(M51:M56) ->  | P56: Plants' mater's, seeding, F30 | R56: =J52+J56+J59 -> 42640.8209 | S56: =R56*C84 -> 248885.9434 | U56: 248885.9434 | V56: 248885.9434 | X56: =V55*(1-$T$58) -> 60000
A57: 10.9 | B57: 0.73935 | C57: 0.5988735 | D57: =113898/10000 -> 11.3898 | E57: 0.61 | F57: 0.5124 | H57: =J56*$T$48 ->  | K57: 0 | P57: Greenhouse Import ↓ | S57: =SUM(S58:S64) -> 7670876 | T57: OwnFunds | U57: =SUM(U58:U64) -> 7170876 | V57: =SUM(V58:V64) ->  | X57: =SUM(X59:X63) -> 
A58: 9.8 | B58: 0.67 | C58: 0.5427 | D58: =100297/10000 -> 10.0297 | E58: 0.77 | F58: 0.6468 | H58: Biennially ↓ ↓ Biennially | K58: 0 | P58: Greenhouse compl. set, F8 | R58: =ROUNDUP(A96,-3) -> 1096000 | S58: =A90+S64 -> 6702076 | T58: 0 | U58: =S58*(1+$T$50) -> 6702076 | V58: =U58*(1+T$61) -> 6702076 | X58: =V57*(1-$T$58) -> 
A59: 7.5 | B59: 0.88 | C59: =B59*(1+$C$49) -> 0.7128 | D59: =12106/10000 -> 1.2106 | E59: 1.48 | F59: 1.2432 | H59: =I86 -> 212820 | I59: =H59*(1+I52) -> 202179 | J59: =I59/$H$49 -> 15087.98507 | K59: 0.009 | P59: Construction+installation, F9 | S59: 500000 | T59: + | V59: =U60*(1+T$61) -> 180000 | X59: =V58*(1-$T$58) -> 6702076
A60: 4.7 | B60: 1.76 | C60: =B60*(1+$C$49) -> 1.4256 | D60: =50224/10000 -> 5.0224 | E60: 1 | F60: 0.84 | H60: =J59*$T$48/2 ->  | K60: 0.062 | P60: Truck transport, F | R60: =A94/T48 ->  | S60: 180000 | T60: =T61-T58 -> 0 | U60: =S60*(1+$T$50) -> 180000 | V60: =U61*(1+T$61) -> 42000
A61: 2.7 | B61: 1.35 | C61: 1.0935 | D61: =29835/10000 -> 2.9835 | E61: 2.2 | F61: 1.848 | H61: q Biennially s | I61: s Biennially q | K61: 0.12 | L61: =$K$49*$K$50*$T$48*10000*K61 ->  | N61: 6 Mo | O61: SubTOTAL | P61: 1 Yr Supervision, F10 | Q61: F10→ 2 | R61: 1 | S61: =A93*R61 -> 42000 | T61: =((100/(100-T58*100)*100-100)/100) -> 0 | U61: =S61*(1+$T$50) -> 42000 | V61: =#REF!*(1+T$61) ->  | X61: =V59*(1-$T$58) -> 180000
A62: 1.6 | B62: 1.76 | C62: 1.4256 | D62: =15665/10000 -> 1.5665 | E62: 0.89 | F62: 0.7476 | H62: TOTAL | I62: TOTAL | K62: 0.191 | N62: 2 → | O62: =SUM(L57:L62)+SUM(M57:M62) ->  | P62: Management.&Training, F10 | R62:  | S62: =A92 -> 6800 | T62: Σ over↓ | U62: =S62*(1+$T$50) -> 6800 | V62: =U62*(1+T$61) -> 6800 | X62: =V61*(1-$T$58) -> 
A63: =SUM(A51:A62) -> 70.2 | B63: =SUM(B51:B62)/12 -> 1.603279167 | C63: =SUM(C51:C62)/12 -> 1.298656125 | D63: =SUM(D51:D62) -> 62.5095 | E63: =SUM(E51:E62)/12 -> 1.276666667 | F63: =SUM(F51:F62)/12 -> 1.0724 | H63: =H53+H54+H57+H60 ->  | I63: =H53+H54+H57 ->  | K63: =SUM(K51:K62) -> 1 | L63: =SUM(L51:L62) ->  | M63: =SUM(M51:M62) ->  | O63: ←Change↓ | X63: =V62*(1-$T$58) -> 6800
A64: TOTAL | B64: Average | C64: =B64 -> Average | D64: TOTAL | E64: Average | F64: =E64 -> Average | J64: Pellets → | K64: Conventional | L64: HEATING | M64: Consumption | N64: 0 | O64: Location↑ | P64: Risk Assessment software | S64: 240000 | U64: =S64*(1+$T$50) -> 240000 | V64: =U64*(1+T$61) -> 240000 | X64: =V60*(1-$T$58) -> 42000
B65: min. Price exWarehouse, LondonÒ | C65: 1.2 | E65: m | H65: 155 | I65: Tansport → | J65: 20 | K65: 350 | L65: =K65/J65/1000 -> 0.0175 | M65: .+ Transport | N65: This project | P65: Exclusive, F29 | Q65: =IF(N64>0,5.7,0) -> 0 | R65: 0 | S65: =Q65*R65 -> 0
B66: Ý Resource: Nov. 2016 | C66: 1.35 | D66: Other product | E66: Price in € | H66: Pellets → | I66: kg p.Mo↓ | J66: kg p.1ha | K66: =H65/1000 -> 0.155 | L66: Transp. p.ha | M66: €/Mo/ha | N66: € p.↓Mo
A67: Spain yiels T + C: | B67: Average price ↓ in Holland | D67: Yield ↓ kg/m2 | E67: € /kg | G67: T | I67: 575463 | J67: =I67/13.2 -> 43595.68182 | K67: =J67*$K$66*(1+$N$64) -> 6757.330682 | L67: =K67*$L$65 -> 118.2532869 | M67: =K67+L67 -> 6875.583969 | N67: =M67*$T$48 -> 
A68: Kg | B68: Kg/m2 | C68: € /kg | F68: 10 | G68: 0.65 | I68: 523149 | J68: =I68/13.2 -> 39632.5 | K68: =J68*$K$66*(1+$N$64) -> 6143.0375 | L68: =K68*$L$65 -> 107.5031563 | M68: =K68+L68 -> 6250.540656 | N68: =M68*$T$48 -> 
A69: 264768 | B69: =A69/$C$83 -> 4.536184211 | C69: 1.21 | F69: 1 | G69: =G68/F68 -> 0.065 | I69: 444513 | J69: =I69/13.2 -> 33675.22727 | K69: =J69*$K$66*(1+$N$64) -> 5219.660227 | L69: =K69*$L$65 -> 91.34405398 | M69: =K69+L69 -> 5311.004281 | N69: =M69*$T$48 -> 
A70: 728112 | B70: 12.47450658 | C70: 2.83 | D70: Here ↗ | E70: Image of new product | G70: C | I70: 340047 | J70: 25761.13636 | K70: =J70*$K$66 -> 3992.976136 | L70: 69.87708239 | M70: =K70+L70 -> 4062.853219 | N70: =M70*$T$48 -> 
A71: 1125264 | B71: 19.27878289 | C71: 1.85 | F71: 10 | G71: 0.45 | I71: 156019 | J71: 11819.62121 | K71: =J71*$K$66*(1+$N$64/1.5) -> 1832.041288 | L71: 32.06072254 | M71: =K71+L71 -> 1864.10201 | V71: iGo to Level
A72: 1191456 | B72: 20.41282895 | C72: 1.33 | F72: 1 | G72: =G71/F71 -> 0.045 | I72: 0 | J72: 0 | K72: =J72*$K$66*(1+$N$64) -> 0 | L72: 0 | M72: =K72+L72 -> 0
A73: 1059072 | B73: 18.14473684 | C73: 1.01 | I73: 0 | J73: 0 | K73: =J73*$K$66*(1+$N$64) -> 0 | L73: 0 | M73: 0
A74: 0 | B74: 0 | C74: 0.63 | I74: 0 | J74: 0 | K74: =J74*$K$66*(1+$N$64) -> 0 | L74: 0 | M74: 0
A75: 369152 | B75: 6.324561404 | C75: 0.53 | I75: 0 | J75: 0 | K75: =J75*$K$66*(1+$N$64) -> 0 | L75: 0 | M75: 0
A76: 595728 | B76: 10.20641447 | C76: 0.51 | I76: 261574 | J76: 19816.21212 | K76: =J76*$K$66*(1+$N$64/3) -> 3071.512879 | L76: 53.75147538 | M76: 3125.264354
A77: 728112 | B77: 12.47450658 | C77: 0.63 | I77: 392361 | J77: 29724.31818 | K77: =J77*$K$66*(1+$N$64) -> 4607.269318 | L77: 80.62721307 | M77: =K77+L77 -> 4687.896531
A78: 369152 | B78: 6.324561404 | C78: 1.01 | I78: 444676 | J78: 33687.57576 | K78: =J78*$K$66*(1+$N$64) -> 5221.574242 | L78: 91.37754924 | M78: 5312.951792
A79: 132384 | B79: 2.268092105 | C79: 0.95 | I79: =SUM(I67:I78)/10000 -> 313.7802 | J79: =SUM(J67:J78) -> 237712.2727 | K79: =SUM(K67:K78) -> 36845.40227 | L79: =SUM(L67:L78) -> 644.7945398 | M79: =SUM(M67:M78) -> 37490.19681 | N79: =SUM(N67:N78) -> 
A80: 264768 | B80: 4.536184211 | C80: 1.26 | N80: ha
A81: =SUM(A69:A80) -> 6827968 | B81: =SUM(B69:B80) -> 116.9813596 | C81: ↙ OFFERS ↘ | D81: =SUM(D69:D80) -> 0 | E81: =SUM(E69:E80)/12 -> 0
A82: ① Spain | B82: Polycarbonate | C82: Production + Nursery | D82: ② | E82: Canada ③ | F82: Netherland–Poland | I82: VEGETABLE MATERIALS for | J82: =H49 -> 13.4
A83: =13810*2 -> 27620 | B83: Product zones 1+3 | C83: 58368 | D83: Sector 1 | E83: =158.15*351 -> 55510.65 | H83: Year | I83: 1 | J83: =I83+1 -> 2 | K83: =J83+1 -> 3 | L83: 4 | M83: 5 | N83: 6 | O83: 7 | P83: 8
A84: =14330*2 -> 28660 | B84: Product zones 2+4 | C84: =C83/10000 -> 5.8368 | D84: Sector 2 | E84: =158.15*351 -> 55510.65 | H84: Fertilizers: | I84: 113440 | J84: 113440 | K84: 113440 | L84: 113440 | M84: 113440 | N84: 113440 | O84: 113440 | P84: 113440
A85: 2700 | B85: Cenrtral warehouse | H85: Seeding: | I85: 275200 | J85: 275200 | K85: 275200 | L85: 275200 | M85: 275200 | N85: 275200 | O85: 275200 | P85: 275200
A86: =SUM(A83:A85) -> 58980 | B86: Ç TOTAL surface greenhouse+nursery | D86: Service area | E86: =ROUND(28.8*42.25,-1) -> 1220 | H86: Substrate: | I86: 212820 | J86: 0 | K86: 212820 | L86: 0 | M86: 212820 | N86: 0 | O86: 212820 | P86: 0
A87: 2246 | B87: Nursery ↑ included | D87: Central coridor | E87: =ROUND((3.25*351),-1) -> 1140 | H87: TOTAL: | I87: =SUM(I84:I86) -> 601460 | J87: =SUM(J84:J86) -> 388640 | K87: 601460 | L87: 388640 | M87: 601460 | N87: 388640 | O87: 601460 | P87: 388640
A88: =A86/10000 -> 5.898 | B88: Ç Surface È | D88: Surface È | E88: =SUM(E83:E84)/10000 -> 11.10213
D89: p. 1 ha
A90: =A99 -> 6462076 | B90: GREENHOUSE | C90: CIF & Auxiliary Facilities | D90: Construction | E90: =1678165 -> 1678165
A91: 0 | B91: Constr. & commiss.
A92: 6800 | B92: Training 4 x €1700 | C92: =A92+A93 -> 48800 | D92: Equipment | E92: =837750 -> 837750
A93: 42000 | B93: Supervision p.Yr | D93: Supervision | E93: 159600
A94: 180000 | B94: Trucking | C94: 140 trucks | D94: Shipping+Trucking | E94: =189500+A94 -> 369500
A95: =ROUND((SUM(A90:A94)),-1) -> 6690880 | B95: Price | D95: Price | E95: =ROUND((SUM(E90:E94)*T4),-1) -> 2496910
A96: =A90/A88 -> 1095638.522 | B96: ← = 1 ha = →
A97: =A96 -> 1095638.522
A99: 6462076

Sheet Cap.Goods
AA1: 1ва | AB1: Част ЧУЖДЕСТРАННИ АКТИВИ | AC1: Бр. | AD1: € | AE1: СЕ ВКУПНО
D3: Level ① | E3: Zoom 150 Capital Goods and Services - First Part | Y3: 1 | Z3: =Intro!V3 -> 1.219512195 | AA3: 1 | AB3: Закупуване на трансформаторната подстанция | AC3: 1 | AD3: 500000 | AE3: =AC3*AD3 -> 500000
P4: =BUDGET!D13 -> 2019-06-30 | AA4: 2 | AB4: Трансформаторска Станица TS 110 / 20 kV | AC4: 1 | AD4: 100000 | AE4: =AC4*AD4 -> 100000
B5: A | C5: Adv.% | D5: INVETMENT IN FOREIGN ACTIVITES (Loan section "A") | G5: 0.18 | I5: FOREIGN ACTIVITES | K5: D | L5: → | M5: OWN FUNDS Loan "D" | O5: Loan "A" + VAT + "D" | Q5: TOTAL | T5: Check | AB5: градежна дозвола, итн. државни документи
A6: Ø | F6: Net Price | G6: + VAT incl. | H6: Advance | I6: Balance | M6: =N6 -> 0 | N6: 0 | O6: Advance | P6: Balance | Q6: Value | S6: → | T6: ↓ | AA6: 3 | AB6: Софтуери за фин. модел за проектно финансиране и | AC6: 1 | AD6: 360000 | AE6: =AC6*AD6 -> 360000
A7: Ø | D7: 1. Purchase the transformer substation | F7: =AE3 -> 500000 | G7: =$G$5*F7 -> 90000 | H7: =C7*F7*(1-$N$6) -> 0 | I7: =F7-H7 -> 500000 | M7: 0 | N7: 0 | O7: =H7+M7 -> 0 | Q7: =O7+P7 -> 0 | T7: =IF(SUM(O8:P8)=(Intro!S58*#REF!),"True","False") ->  | U7: Loan "A" | V7: Purchase, exported cap. goods and services; delivery DDP* | AB7: управление на паричните пототви и оценка на риска
C8: 0.25 | D8: 2. Station TS 110 / 20 kV building permit - | F8: =AE4 -> 100000 | G8: =$G$5*F8 -> 18000 | H8: =C8*F8*(1-$N$6) -> 25000 | I8: =F8-H8 -> 75000 | M8: =C7*F8*$N$6 -> 0 | N8: =(100%-C7)*F8*$N$6 -> 0 | O8: =H8+M8 -> 25000 | P8: =I8+N8 -> 75000 | Q8: =O8+P8 -> 100000 | T8: =IF(SUM(O9:P9)=Intro!S60,"True","False") -> False | U8: Conditional | AA8: 4 | AB8: Моторни возила со опрема | AC8: 2 | AD8: 40000 | AE8: =AC8*AD8 -> 80000
D9: documentation with state institutions | T9: =IF(SUM(O10:P10)=Intro!S61,"True","False") -> False | U9: Loan "B" | V9: Could be up to 30% of original part of the export paid by | AB9: Вкупно : | AE9: =SUM(AE3:AE8) -> 1040000
A10: Ø | C10: 0 | D10: 3. Cash-flows, profitability & sensitivity | F10: =AE6 -> 360000 | G10: =$G$5*F10 -> 64800 | H10: =C10*F10*(1-$N$6) -> 0 | I10: =F10-H10 -> 360000 | M10: =C10*F10*$N$6 -> 0 | N10: =(100%-C10)*F10*$N$6 -> 0 | O10: =H10+M10 -> 0 | P10: =I10+N10 -> 360000 | Q10: =O10+P10 -> 360000 | V10: Loan "A" Greenhouse base, assembling, infrastructure and | AB10: ИНВЕСТИЦИЈА НА ЛОКАЛНИТЕ ЗЕМЈИТЕ НА КАПИТАЛОТ
D11: analysis + Financial Risk Asessment | T11: =IF(SUM(#REF!)=Intro!S62,"True","False") ->  | V11: other LTAssets - all one-off local country costs (up to 30% | AA11: 5 | AB11: Постројка TC 110/20 kV со 2 ТР + 2 ТР полиња и 2 ЕТР на основен проект | AC11: 1 | AD11: 150000 | AE11: =AC11*AD11 -> 150000
D12: 4. Motor cars with equipment | F12: =AE8 -> 80000 | G12: =$G$5*F12 -> 14400 | H12: 0 | I12: =F12-H12 -> 80000 | M12: 0 | N12: 0 | O12: 0 | P12: =I12+N12 -> 80000 | Q12: =O12+P12 -> 80000 | V12: of original part of export value) | AA12: 5.1. | AB12: Градежни работи | AC12: 1 | AD12: 814000 | AE12: =AC12*AD12 -> 814000
D13: Other Secont Part | M13: =SUM(M7:M12) -> 0 | N13: =SUM(N7:N12) -> 0 | O13: =SUM(O7:O12) -> 25000 | P13: =SUM(P7:P12) -> 515000 | Q13: =SUM(Q7:Q12) -> 540000 | T13: =IF(SUM(O13:P13)=Intro!S68,"True","False") -> False | U13: Loan "C" | V13: Permanent purchase of production materials and seasonal trade (conditionally - the start-up working materials) | AA13: 5.2. | AB13: 110 kV построение | AC13: 2 | AD13: 300000 | AE13: =AC13*AD13 -> 600000
B14: ↑ Кликни за повеќе информации SubTOTAL: | F14: =SUM(F7:F12) -> 1040000 | G14: =SUM(G7:G12) -> 187200 | H14: =SUM(H7:H12) -> 25000 | I14: =SUM(I7:I12) -> 1015000 | T14: =IF(F14=Q13,"True","False") -> False | AA14: 5.3. | AB14: 20 kV построение | AC14: 1 | AD14: 200000 | AE14: =AC14*AD14 -> 200000
V15: Own funds (Loan "C"). Credit percentage down payment,
U16: Loan "D" | AA16: 5.4. | AB16: НН инсталација, управување и релејна заштиа | AC16: 1 | AD16: 350000 | AE16: =AC16*AD16 -> 350000
B17: B | D17: LOCAL COUNTRY CAPITAL INVESTMENT (Loan section "B") | G17: 0.18 | M17: OWN FUNDS Loan "D" | T17: =IF(SUM(O17:P17)=Intro!S58*#REF!,"True","False") ->  | V17: when required (as ECA's practice)
C18: Advance, % | F18: Net Price | G18: VAT incl. | H18: Advance | I18: Balance | M18: =N18 -> 0 | N18: =N6 -> 0 | U18: Involve percentage of own funds, if required, in Cell N6 and click | AA18: 5.5. | AB18: Eнергетски трансформатори 40 МВА парче | AC18: 2 | AD18: 700000 | AE18: =AC18*AD18 -> 1400000
C19: 5․ | D19: Plant TRansform.Station 110/20 kV with | F19: =AE19 -> 3514000 | G19: =$G$17*F19 -> 632520 | H19: 0 | I19: =F19-H22 -> 3514000 | U19: % button left | AB19: Вкупно : | AE19: =SUM(AE11:AE18) -> 3514000
D20: 2 TR + 2 TR fields and 2 ETR .Docs with | U20: * DDP - Delivered duty paid | AA20: 6 | AB20: Разводни постројки
D21: state institutions, preparation and permit | K21: D | L21: → | O21: Loan "A" + VAT + "D" | Q21: TOTAL | T21: =IF((O20+P20)=Intro!S57,"True","False") -> False | AA21: 3.1. | AB21: 20kV Разводна постројка Алумина | AC21: 1 | AD21: 200000 | AE21: =AC21*AD21 -> 200000
D22: Building TS 110/20 kV with + 2 TS fields … | O22: Advance | P22: Balance | Q22: Value | S22: → | AA22: 3.2. | AB22: 20kV Разводна постројка Лимак | AC22: 1 | AD22: 200000 | AE22: =AC22*AD22 -> 200000
C23: 6․ | D23: Distribution facilities | F23: =AE25 -> 750000 | G23: =$G$17*F23 -> 135000 | H23: =C33*F19-C33*F19*$N$6 -> 0 | I23: =F23-H23 -> 750000 | M23: =SUM(M24:M30) ->  | N23: 0 | AA23: 3.3. | AB23: 20kV Разводна постројка Избегово | AC23: 1 | AD23: 200000 | AE23: =AC23*AD23 -> 200000
C24: 7․ | D24: Planned 20 kV cable connections | F24: =AE31 -> 1650000 | G24: =$G$17*F23 -> 135000 | H24: =E33*F23-E33*F23*$N$6 -> 0 | I24: =F24-H24 -> 1650000 | O24: =SUM(O26:O30) ->  | P24: =SUM(P26:P30) ->  | Q24: =SUM(Q26:Q30) ->  | T24: =IF((O24+P24)=Q24,"True","False") ->  | AA24: 3.4. | AB24: Документација, одобренија ,испитувања… | AC24: 1 | AD24: 150000 | AE24: =AC24*AD24 -> 150000
C25: 8․ | D25: 20/04 kV transformer stations | F25: =AE35 -> 1680000 | G25: =$G$17*F25 -> 302400 | H25: =C23*F25-C23*F25*$N$6 -> 0 | I25: =F25-H25 -> 1680000 | M25: =#REF!*$M$18 ->  | N25: =#REF!*$M$18 ->  | O25: =#REF!-M25 ->  | P25: =#REF!-N25 ->  | Z25:   | AB25: Вкупно : | AE25: =SUM(AE21:AE24) -> 750000
A26: Ø | C26: 9․ | D26: Land acquisition for transformer stations | F26: =AE37 -> 300000 | G26: =$G$17*F26 -> 54000 | H26: =C24*F26-C24*F26*$N$6 -> 0 | I26: =F26-H26 -> 300000 | M26: =D33*#REF!*$N$18 ->  | N26: =(100%-D33)*#REF!*$N$6 ->  | O26: =H22+M26 ->  | P26: =#REF!+N26 ->  | Q26: =O26+P26 ->  | T26: =IF(SUM(O26:P26)=Intro!S51,"True","False") ->  | AA26: 7 | AB26: Планирани 20 kV кабловски врски
A27: Ø | C27: 10․ | D27: IZBEGOVO. Plant TR.Station 110/20 kV | F27: =AE46 -> 3664000 | G27: =$G$17*F27 -> 659520 | H27: =C26*F27-C25*F28*$N$6 -> 0 | I27: =F27-H27 -> 3664000 | M27: =C33*F19*$N$18 -> 0 | N27: =(100%-C33)*F19*$N$6 -> 0 | O27: =H23+M27 -> 0 | P27: =I23+N27 -> 750000 | Q27: =O27+P27 -> 750000 | T27: =IF(SUM(O27:P27)=Intro!#REF!,"True","False") ->  | AA27: 4.1. | AB27: 20 kV кабловски врски до Алумина | AC27: 2 | AD27: 200000 | AE27: =AC27*AD27 -> 400000
D28: with 2 transormators 110/20 kV + 12.7 MVA | M28: =E33*F23*$N$18 -> 0 | N28: =(100%-E33)*F23*$N$6 -> 0 | O28: =H24+M28 -> 0 | P28: =I24+N28 -> 1650000 | Q28: =O28+P28 -> 1650000 | T28: =IF(SUM(O28:P28)=Intro!S52,"True","False") ->  | AA28: 4.2. | AB28: 20 kV кабловски врски од Алумина / Избегово | AC28: 2 | AD28: 275000 | AE28: =AC28*AD28 -> 550000
A29: Ø | M29: =#REF!*F25*$N$18 ->  | N29: =(100%-#REF!)*F25*$N$6 ->  | O29: =H25+M29 ->  | P29: =I25+N29 ->  | Q29: =O29+P29 ->  | T29: =IF(SUM(O29:P29)=Intro!S53,"True","False") ->  | AA29: 4.3. | AB29: 20 kV кабловски врски од Алумина / Лимак | AC29: 2 | AD29: 275000 | AE29: =AC29*AD29 -> 550000
B30: =IF(C31<=30%,"C","N") -> C | C30: ↑ Кликни за повеќе информации | N30: =(100%-#REF!)*F26*$N$18 ->  | O30: 0 | P30: =I26+N30 ->  | Q30: =O30+P30 ->  | AA30: 4.4. | AB30: Документација, одобренија, испитувања… | AC30: 1 | AD30: 150000 | AE30: =AC30*AD30 -> 150000
C31: =F14/F31 -> 0.08998096556 | E31: SubTOTAL: | F31: =SUM(F19:F28) -> 11558000 | G31: =SUM(G19:G28) -> 1918440 | H31: =SUM(H19:H29) -> 0 | I31: =SUM(I19:I28) -> 11558000 | M31: =SUM(M32:M33) ->  | N31: =SUM(N32:N33) ->  | O31: =SUM(O32:O33) ->  | P31: =SUM(P32:P33) ->  | Q31: =SUM(Q32:Q33) ->  | T31: =IF((O31+P31)=Q31,"True","False") ->  | AB31: Вкупно : | AE31: =SUM(AE27:AE30) -> 1650000
D32: SECOND PART | M32: =#REF!*#REF!*$N$6 ->  | N32: =(100%-#REF!)*#REF!*$N$6 ->  | O32: =#REF!+M32 ->  | P32: =#REF!+N32 ->  | Q32: =O32+P32 ->  | T32: =IF(SUM(O32:P32)=Intro!S54,"True","False") ->  | AA32: 8 | AB32: 20/04 kV трансформаторски станици
M33: =#REF!*#REF!*$N$6 ->  | N33: =(100%-#REF!)*#REF!*$N$6 ->  | O33: =#REF!+M33 ->  | P33: =#REF!+N33 ->  | Q33: =O33+P33 ->  | T33: =IF(SUM(O33:P33)=Intro!S55,"True","False") ->  | AA33: 5.1. | AB33: Документација | AC33: 1 | AD33: 80000 | AE33: =AC33*AD33 -> 80000
M34: =M23+M31 ->  | N34: =N23+N31 ->  | O34: =O24+O31 ->  | P34: =P24+P31 ->  | Q34: =Q24+Q31 ->  | T34: =IF(SUM(O34:P34)=Q34,"True","False") ->  | AA34: 5.2. | AB34: Комплет 1000 кVА (апроксимирано) | AC34: 40 | AD34: 40000 | AE34: =AC34*AD34 -> 1600000
AE35: =SUM(AE33:AE34) -> 1680000
E36: TOTAL: | F36: =F14+F31 -> 12598000 | G36: =G14+G31 -> 2105640 | H36: =H14+H31 -> 25000 | I36: =I14+I31 -> 12573000 | K36: D | L36: → | M36: =M20+M34 ->  | N36: =N20+N34 ->  | O36: WORKING CAPITAL ↓ | Q36: =#REF!+Q34 ->  | AB36: Вкупно :
M37: Loan "D" | N37: =M36+N36 ->  | P37: Optional: | Q37: 20000 | AA37: 9 | AB37: Откуп на земјиште за Трансформаторска Станица | AC37: 1 | AD37: 300000 | AE37: =AC37*AD37 -> 300000
C38: 0.001 | E38: Ann. Interests: | G38: 0.04 | H38: =G38 -> 0.04 | M38: 0.055 | Q38: =SUM(Q36:Q37) -> 
A39: Ø | C39: INSURANCE | E39: DEPRECIATION OF ASSETS | G39: Price | H39: =SUM(H40:H45) ->  | L39: KEY NOTES: | AB39: Трансформаторска Станица ИЗБЕГОВО
C40: 0.001 | D40: =C40*G40 ->  | E40: up to; for industry equipment | F40: 0.16 | G40: =F8+#REF!+#REF! ->  | H40: =G40*F40 ->  | K40: 1 | M40: *Gradients | N40: in Cells | O40: temporary put an approximate value in it without document background and | AA40: 10 | AB40: Постројка ТС 110/20 kV со 2 ДВ + 2 ТР+ Спојно полиња
A41: Ø | E41: Building | F41: 0.04 | G41: 0 | H41: =G41*F41 -> 0 | M41: supported | N41: in Cells | O41: values with document. Icon - for URL to data resource. | AA41: 10.1. | AB41: Градежни работи | AC41: 1 | AD41: 814000 | AE41: =AC41*AD41 -> 814000
A42: Ø | K42: 2 | M42: The icons or ride at Internet sources. | AA42: 10.2. | AB42: 110 kV построение | AC42: 5 | AD42: 400000 | AE42: =AC42*AD42 -> 2000000
A43: Ø | C43: 0.02 | D43: =C43*G43 ->  | E43: Motor car | F43: 0.25 | G43: =#REF! ->  | H43: =F43*G43 ->  | K43: 3 | M43: Info icons | N43: provides link to author's information sources. | AA43: 10.3. | AB43: 20 kV построение | AC43: 1 | AD43: 200000 | AE43: =AC43*AD43 -> 200000
A44: Ø | C44: 0.02 | D44: =C44*G44 -> 6000 | E44: Truck | F44: 0.25 | G44: =F26 -> 300000 | H44: =F44*G44 -> 75000 | K44: 4 | M44: Various fonts and background colors represent similar group data resources. | AA44: 10.4. | AB44: НН инсталација, управување и релејна заштиа парче | AC44: 1 | AD44: 550000 | AE44: =AC44*AD44 -> 550000
A45: Ø | D45: =SUM(D40:D44) ->  | E45: Intangible assets (Fin. modeling) | K45: 5 | M45: It's recommendable to follow these indications in order to facilitate the structure identification. | W45: Go to BUDGET and Financial analyzes | AA45: 10.5. | AB45: Eнергетски трансформатори 12,7 МVА (сервисирани) | AC45: 2 | AD45: 50000 | AE45: =AC45*AD45 -> 100000
AB46: Вкупно : | AE46: =SUM(AE41:AE45) -> 3664000
AB49: СЕ ВКУПНО: | AE49: =AE11+AE19+AE25+AE31+AE37+AE46+AE3+AE35+AE4+AE6 -> 12668000
AE50: TS 110 / 20kV plant with 2 DW + 2 TR fields and 2 ETC

Sheet BUDGET
A1: [ Level① | B1: PRE-DESIGN BACKGROUND. | C1: Sales | D1: Jan | E1: Feb | F1: 2016-03-31 | G1: 2016-04-30 | H1: 2016-05-31 | I1: 2015-06-30 | J1: 2015-07-31 | K1: 2015-08-31 | L1: 2015-09-30 | M1: 2015-10-31 | N1: 2015-11-30 | O1: 2015-12-31 | P1: i TOTAL p.a.i | Q1: =($Q$2/Intro!U40+$Q$3/Intro!U41)/2 ->  | R1: =($R$2/Intro!U40+$R$3/Intro!U41)/2 -> 
A2: Back | B2: Value of production | C2: IncomeTx Mo | D2: =Intro!I40 ->  | E2: =Intro!J40 ->  | F2: =Intro!K40 ->  | G2: =Intro!L40 ->  | H2: =Intro!M40 ->  | I2: =Intro!N40 ->  | J2: =Intro!O40 ->  | K2: =Intro!P40 ->  | L2: =Intro!Q40 ->  | M2: =Intro!R40 ->  | N2: =Intro!S40 ->  | O2: =Intro!T40 ->  | P2: =SUM(D2:O2) ->  | Q2: =SUM(D2:I2) ->  | R2: =SUM(J2:O2) ->  | V2: =Q2+R2 -> 
A3: From Level 0 | B3: Business Plan | C3: IncomeCx Mo | D3: =Intro!I41 ->  | E3: =Intro!J41 ->  | F3: =Intro!K41 ->  | G3: =Intro!L41 ->  | H3: =Intro!M41 ->  | I3: =Intro!N41 ->  | J3: =Intro!O41 ->  | K3: =Intro!P41 ->  | L3: =Intro!Q41 ->  | M3: =Intro!R41 ->  | N3: =Intro!S41 ->  | O3: =Intro!T41 ->  | P3: =SUM(D3:O3) ->  | Q3: =SUM(D3:I3) ->  | R3: =SUM(J3:O3) -> 
A4: =Intro!U48 ->  | B4:  Lender/Insurer (Loan "A") | C4: Var. Costs | D4: 1 | E4: =D4+1 -> 2 | F4: =E4+1 -> 3 | G4: 4 | H4: 5 | I4: 6 | J4: 7 | K4: 8 | L4: 9 | M4: 10 | N4: 11 | O4: 12 | Q4: =(Q5/P5+Q6/P6)/2 ->  | R4: =(R5/P5+R6/P6)/2 -> 
A5: =Intro!V49 ->  | B5:  Local Country Costs +VAT | C5: Heating | D5: =Intro!I43 ->  | E5: =Intro!J43 ->  | F5: =Intro!K43 ->  | G5: =Intro!L43 ->  | H5: =Intro!M43 ->  | I5: =Intro!N43 ->  | J5: =Intro!O43 ->  | K5: =Intro!P43 ->  | L5: =Intro!Q43 ->  | M5: =Intro!R43 ->  | N5: =Intro!S43 ->  | O5: =Intro!T43 ->  | P5: =SUM(D5:O5) ->  | Q5: =SUM(D5:I5) ->  | R5: =SUM(J5:O5) -> 
A6: =Intro!V48 ->  | C6: Packing | D6: =Intro!I44 ->  | E6: =Intro!J44 ->  | F6: =Intro!K44 ->  | G6: =Intro!L44 ->  | H6: =Intro!M44 ->  | I6: =Intro!N44 ->  | J6: =Intro!O44 ->  | K6: =Intro!P44 ->  | L6: =Intro!Q44 ->  | M6: =Intro!R44 ->  | N6: =Intro!S44 ->  | O6: =Intro!T44 ->  | P6: =SUM(D6:O6) ->  | Q6: =SUM(D6:I6) ->  | R6: =SUM(J6:O6) -> 
C7: Running costs | P7: =SUM(D7:O7) -> 0 | Q7: =SUM(D7:I7) -> 0 | R7: =SUM(J7:O7) -> 0
C8: 1 Yr Oper. Costs | D8: T Fertilizers C | F8: T+C Seeds | G8: Substrate | H8: 1-6 Water+Electricity 7-12 | J8: 1-6 SubTotal | K8: 7-12 SubTotal | L8: ß 1-Yr biennially 2 Yr à | N8: 1-6 Mo All Costs 7-12 Mo | P8: =SUM(P5:P7) ->  | Q8: =SUM(Q5:Q7) ->  | R8: =SUM(R5:R7) -> 
C9: =Intro!M17 -> 100 kVA | D9: =Intro!H53 ->  | E9: =Intro!H54 ->  | F9: =Intro!H57 ->  | G9: =Intro!H60 ->  | H9: =Intro!O56 ->  | I9: =Intro!O62 ->  | J9: =SUM(D9:G9)/2+H9 ->  | K9: =SUM(D9:G9)/2+I9 ->  | L9: ←WITH | M9: WITHOUT→ | N9: =SUM(D9:F9)/2+H9 ->  | O9: =SUM(D9:F9)/2+I9 ->  | Q9: ❶ 30 Jun | R9: 31 Dec ❷
C10: Market products | D10: 0 | E10: 0 | F10: 0 | G10: 20000 | H10: 30000 | I10: 40000 | J10: 50000 | K10: 40000 | L10: 30000 | M10: 30000 | N10: 0 | O10: 0 | P10: =SUM(D10:O10) -> 240000 | Q10: =SUM(D10:I10) -> 90000 | R10: =SUM(J10:O10) -> 150000
A11: From [ Level① | C11: Nr of Periods | D11: 1 | E11: =D11+1 -> 2 | F11: 3 | G11: 4 | H11: 5 | I11: 6 | J11: 7 | K11: 8 | L11: 9 | M11: 10 | N11: 11 | O11: 12 | P11: 13 | Q11: 14 | R11: =Q11+1 -> 15 | S11: =R11+1 -> 16
C12: Nr of Monts | D12: 6 | E12: =D12+6 -> 12 | F12: 18 | G12: 24 | H12: 30 | I12: 36 | J12: 42 | K12: =J12+6 -> 48 | L12: 54 | M12: 60 | N12: 66 | O12: 72 | P12: 78 | Q12: 84 | R12: 90 | S12: =R12+6 -> 96
B13: Repayment periods | C13: Date: | D13: 2019-06-30 | E13: 2019-12-31 | F13: 2020-06-30 | G13: 2020-12-31 | H13: 2021-06-30 | I13: 2021-12-31 | J13: 2022-06-30 | K13: 2022-12-31 | L13: 2023-06-30 | M13: 2023-12-31 | N13: 2024-06-30 | O13: 2024-12-31 | P13: 2025-06-30 | Q13: 2025-12-31 | R13: 2026-06-30 | S13: 2026-12-31
A14: ='Cap.Goods'!N37 ->  | B14:  Own Funds Loan "D" | J14: Level ②
A15: =Intro!T52 ->  | B15:  VAT of Loans "A"+"B" Return↔ | D15: =Intro!$T$52 ->  | E15: =-A15 -> 
A16: ='Cap.Goods'!#REF! ->  | B16: Export of cap. goods | C16: =SUM(D16:F16) -> 0 | D16: ='Cap.Goods'!O20 -> 0 | E16: ='Cap.Goods'!P20 -> 0
A17: ='Cap.Goods'!Q34 ->  | B17: Local country costs | C17: =SUM(D17:F17) ->  | D17: ='Cap.Goods'!O34 ->  | E17: ='Cap.Goods'!P34 -> 
A18: ='Cap.Goods'!Q36 ->  | B18: Capital Investment | C18: =SUM(D18:F18) ->  | D18: =SUM(D15:D17) ->  | E18: =SUM(E15:E17) -> 
B19:  Working Capital (Loan"C") | C19: =SUM(F19:Q19) -> 1440000 | F19: =Q10 -> 90000 | G19: =$R$10 -> 150000 | H19: =$Q$10 -> 90000 | I19: =$R$10 -> 150000 | J19: =$Q$10 -> 90000 | K19: =$R$10 -> 150000 | L19: =$Q$10 -> 90000 | M19: =$R$10 -> 150000 | N19: =$Q$10 -> 90000 | O19: =$R$10 -> 150000 | P19: =$Q$10 -> 90000 | Q19: =$R$10 -> 150000 | R19: =$Q$10 -> 90000 | S19: =$R$10 -> 150000
A20: Sales, | B20: Revenue Pro-forma Budget | C20: =SUM(F20:Q20) ->  | D20: =D44 -> 0 | E20: 0 | F20: =F44 ->  | G20: =G44 ->  | H20: =H44 ->  | K20: =K44 ->  | Q20: =Q44 ->  | R20: =R44 ->  | S20: =S44 -> 
A21: Less: | C21: Date: | D21: =D13 -> 2019-06-30 | E21: =E13 -> 2019-12-31 | F21: 2020-06-30 | G21: 2020-12-31 | H21: 2021-06-30 | I21: 2021-12-31 | J21: 2022-06-30 | K21: 2022-12-31 | L21: 2023-06-30 | M21: 2023-12-31 | N21: 2024-06-30 | O21: 2024-12-31 | P21: 2025-06-30 | Q21: 2025-12-31 | R21: 2026-06-30 | S21: 2026-12-31
A22: Costs, | B22: TOTAL (in €) | C22: =SUM(D22:S22) ->  | D22: =SUM(D23:D26) -> 
B23: Variable costs | C23: =SUM(D23:Q23) ->  | D23: =D55 -> 0 | E23: =E55 -> 0 | F23: =F55 ->  | G23: =G55 ->  | H23: =H55 ->  | I23: =I55 ->  | R23: =R55 ->  | S23: =S55 -> 
B24: Fixed costs | C24: =SUM(D24:Q24) ->  | D24: =D59 -> 
B25: Marketing & Risk Mngmt | C25: =SUM(D25:Q25) ->  | D25: =D65 -> 0
A26: ='Cap.Goods'!H39 ->  | B26: Depreciations | G26: ='Cap.Goods'!$H$40+'Cap.Goods'!H43+'Cap.Goods'!H44 ->  | I26: =G26 ->  | K26: =G26 ->  | M26: =G26 ->  | O26: =M26-'Cap.Goods'!H43-'Cap.Goods'!H44 ->  | Q26: =O26 ->  | S26: ='Cap.Goods'!H43+'Cap.Goods'!H44 -> 
B27: Cash Flows (EBIT) | D27: =D20-D22 ->  | E27: =E20-E22 ->  | F27: =F20-F22 ->  | G27: =G20-G22 ->  | H27: =H20-H22 ->  | I27: =I20-I22 ->  | J27: =J20-J22 ->  | P27: =P20-P22 ->  | Q27: =Q20-Q22 ->  | R27: =R20-R22 ->  | S27: =S20-S22 ->  | U27: =SUM(D27:Q27) -> 
A28: Less: | B28: Interests Loans "A" + "B" | D28: =D86+D91+D96 -> 0 | J28: =J86+J91+J96 ->  | Q28: =Q86+Q91+Q96 ->  | R28: =R86+R91+R96 ->  | S28: =S86+S91+S96 ->  | U28: =SUM(D28:Q28) -> 
B29: EBT | D29: =D27-D28 ->  | G29: =G27-G28 ->  | H29: =H27-H28 ->  | P29: =P27-P28 ->  | Q29: =Q27-Q28 ->  | R29: =R27-R28 ->  | S29: =S27-S28 ->  | U29: =SUM(D29:Q29) ->  | V29: =U29/$Q$12 -> 
A30: Less: | B30: Income tax | C30: 0.1 | G30: =(D29+E29+F29)*C30 ->  | I30: =(G29+H29)*$C$30-H31 ->  | K30: =(I29+J29)*$C$30-J31 ->  | M30: =(K29+L29)*$C$30-L31 ->  | O30: =(M29+N29)*$C$30-N31 ->  | Q30: =(O29+P29)*$C$30-P31 ->  | S30: =(Q29+R29)*$C$30-R31 ->  | U30: =SUM(D26:Q26) -> 
B31: Advance deposit | H31: =G30/2 ->  | J31: =I30/2 ->  | L31: =K30/2 ->  | N31: =M30/2 ->  | P31: =O30/2 ->  | R31: =Q30/2 ->  | U31: =SUM(U29:U30) -> 
B32: EAT | C32: =SUM(D32:Q32) ->  | D32: =D29-D30-D31 ->  | E32: =E29-E30-E31 ->  | F32: =F29-F30-F31 ->  | G32: =G29-G30-G31 ->  | H32: =H29-H30-H31 ->  | I32: =I29-I30-I31 ->  | J32: =J29-J30-J31 ->  | K32: =K29-K30-K31 ->  | L32: =L29-L30-L31 ->  | M32: =M29-M30-M31 ->  | U32: =SUM(D32:Q32) ->  | V32: =U32/$Q$12 -> 
A33: Add: | B33: Total depreciations | E33: =E26 -> 0 | G33: =G26 ->  | H33: =H26 -> 0 | J33: 0 | L33: 0 | N33: 0 | P33: 0
A34: Add: | B34: Tax advance deposited
A35: ► | B35: Operating Cash Flows | C35: =SUM(D35:S35) ->  | D35: =SUM(D32:D34) ->  | L35: =SUM(L32:L34) ->  | R35: =SUM(R32:R34) ->  | S35: =SUM(S32:S34) -> 
A36: Less: | D36: =-D18 ->  | E36: =-E18 ->  | F36: =-F18 -> 0
A37: ► (NCFs) | B37: Project's Net Cash Flows | C37: =SUM(D37:S37) ->  | D37: =D35+D36 ->  | E37: =E35+E36 ->  | F37: =F35+F36 ->  | G37: =G35+G36 ->  | H37: =H35+H36 ->  | I37: =I35+I36 ->  | P37: =P35+P36 ->  | Q37: =Q35+Q36 ->  | R37: =R35+R36 ->  | S37: =S35+S36 -> 
A38: Less: Loans— | B38: Installments (principal + interest) | D38: =-(D88+D93+D98-D28) -> 0 | E38: =-(E88+E93+E98-E28) ->  | F38: =-(F88+F93+F98-F28) ->  | G38: =-(G88+G93+G98-G28) ->  | H38: =-(H88+H93+H98-H28) ->  | V38: =SUM(D38:Q38) -> 
B39: Cash | D39: =D37+D38 ->  | J39: =J37+J38 ->  | K39: =K37+K38 ->  | L39: =L37+L38 -> 
A40: Cumulative NCFs (loan pay-off incl.) | C40: → | D40: =D39 ->  | E40: =D40+E39 ->  | F40: =E40+F39 ->  | G40: =F40+G39 ->  | H40: =G40+H39 ->  | I40: =H40+I39 ->  | O40: =N40+O39 ->  | P40: =O40+P39 ->  | Q40: =P40+Q39 ->  | R40: =Q40+R39 ->  | S40: =R40+S39 -> 
B41: Years : | D41: → | F41: -0.03 | G41: =E41+1 -> 1 | H41: 0 | I41: =G41+1 -> 2 | J41: =H41+5% -> 0.05 | K41: =I41+1 -> 3 | L41: =J41+5% -> 0.1 | M41: =K41+1 -> 4 | N41: =L41+5% -> 0.15 | O41: =M41+1 -> 5 | P41: =N41+3% -> 0.18 | Q41: =O41+1 -> 6 | R41: =P41+2% -> 0.2 | S41: =Q41+1 -> 7
A43: Income data. Selected year <+>: | C43: Calendar year | D43: =D13 -> 2019-06-30 | E43: =E13 -> 2019-12-31 | F43: 2020-06-30 | G43: 2020-12-31 | H43: 2021-06-30 | I43: 2021-12-31 | J43: 2022-06-30 | K43: 2022-12-31 | L43: 2023-06-30 | M43: 2023-12-31 | N43: 2024-06-30 | O43: 2024-12-31 | P43: 2025-06-30 | Q43: 2025-12-31 | R43: 2026-06-30 | S43: 2026-12-31
A44: =SUM(F44:Q44) ->  | B44: Sales | F44: =F45 ->  | R44: =R45 ->  | S44: =S45 -> 
F45: =SUM(F46:F47) ->  | G45: =SUM(G46:G47) ->  | R45: =SUM(R46:R48) ->  | S45: =SUM(S46:S48) -> 
F46: =Q2*(1+$F$41) ->  | G46: =R2*(1+$F$41) ->  | H46: =$Q$2 ->  | I46: =$R$2 ->  | J46: =$Q$2*(1+J41) ->  | K46: =$R$2*(1+J41) ->  | L46: =$Q$2*(1+L41) ->  | M46: =$R$2*(1+L41) ->  | N46: =$Q$2*(1+N41) ->  | O46: =$R$2*(1+N41) ->  | P46: =$Q$2*(1+P41) ->  | Q46: =$R$2*(1+P41) ->  | R46: =$Q$2 ->  | S46: =$R$2*(1+R41) -> 
F47: =Q3*(1+$F$41) ->  | G47: =R3*(1+$F$41) ->  | H47: =$Q$3 ->  | I47: =$R$3 ->  | J47: =$Q$3*(1+J41) ->  | K47: =$R$3*(1+J41) ->  | L47: =$Q$3*(1+L41) ->  | M47: =$R$3*(1+L41) ->  | N47: =$Q$3*(1+N41) ->  | O47: =$R$3*(1+N41) ->  | P47: =$Q$3*(1+P41) ->  | Q47: =$R$3*(1+P41) ->  | R47: =$Q$3 ->  | S47: =$R$3*(1+R41) -> 
A49: OPERATIONAL AND RISK MANAGEMENT | C49: Option: Funding | E49: 1000 | F49: 0.5 | G49: 0.3 | H49: 0.2 | I49: =$E$49*F49 -> 500 | J49: =$E$49*G49 -> 300 | K49: =$E$49*H49 -> 200 | L49: 0
B50: Dynamic structure of new loan with | C50: 0.06 | D50: Select and | E50: ↑ ENTER ↑ | H50: New debt to add to the Costs→ | I50: 0 | J50: =I49*(1+$C$50/2) -> 515 | K50: =J49*(1+$C$50/2) -> 309 | L50: =K49*(1+$C$50/2) -> 206
A51: Sales, | B51: Current accounting reports
A52: Costs, | B52: TOTAL accounting reports
A53: OCFCS | B53: Cash Flow Statements ‒ | C53: Аccounting
B54: Income data (in €), EU Zone Periods: | C54: =C13 -> Date: | D54: =D13 -> 2019-06-30 | E54: =E13 -> 2019-12-31 | F54: 2020-06-30 | G54: 2020-12-31 | H54: 2021-06-30 | I54: 2021-12-31 | J54: 2022-06-30 | K54: 2022-12-31 | L54: 2023-06-30 | M54: 2023-12-31 | N54: 2024-06-30 | O54: 2024-12-31 | P54: 2025-06-30 | Q54: 2025-12-31 | R54: =#REF! ->  | S54: =T13 -> 00:00:00
B55: Variable costs | C55: =SUM(D55:S55) ->  | D55: =SUM(D56:D58) -> 0 | E55: =SUM(E56:E58) -> 0 | F55: =SUM(F56:F58)-F57 ->  | G55: =SUM(G56:G58)-G57 ->  | H55: =SUM(H56:H58) -> 
A56: =Q8 ->  | B56: 1st Heating, packing, running costs 2nd | C56: =R8 ->  | D56: 0 | E56: 0 | F56: =$A$56 ->  | G56: =$C$56 ->  | H56: =$A$56 ->  | I56: =$C$56 ->  | J56: =$A$56 ->  | K56: =$C$56 ->  | L56: =$A$56 ->  | M56: =$C$56 ->  | N56: =$A$56 ->  | O56: =$C$56 ->  | P56: =$A$56 ->  | Q56: =$C$56 ->  | R56: =$A$56 ->  | S56: =$C$56 -> 
B57: Operat. costs ̶ fertilizers, substrate, etc. | D57: 0 | E57: 0 | F57: =H9 ->  | G57: =I9 ->  | H57: =$N$9 ->  | I57: =$O$9 ->  | J57: =$J$9 ->  | K57: =$K$9 ->  | L57: =$N$9 ->  | M57: =$O$9 ->  | N57: =$J$9 ->  | O57: =$K$9 ->  | P57: =$N$9 ->  | Q57: =$O$9 ->  | R57: =$J$9 ->  | S57: =$K$9 -> 
A58: 2000 | B58: p.ann./ha. Other materials and services | F58: =$A$58/2*$C$9*$Q$4 ->  | G58: =$A$58/2*$C$9*$R$4 ->  | H58: =$A$58/2*$C$9*$Q$4 ->  | I58: =$A$58/2*$C$9*$R$4 ->  | J58: =$A$58/2*$C$9*$Q$4 ->  | K58: =$A$58/2*$C$9*$R$4 ->  | L58: =$A$58/2*$C$9*$Q$4 ->  | M58: =$A$58/2*$C$9*$R$4 ->  | N58: =$A$58/2*$C$9*$Q$4 ->  | O58: =$A$58/2*$C$9*$R$4 ->  | P58: =$A$58/2*$C$9*$Q$4 ->  | Q58: =$A$58/2*$C$9*$R$4 ->  | R58: =$A$58*$Q$4 ->  | S58: =$A$58*$R$4 -> 
A59: =IF(C9>=2.5,3600,IF(AND(C9>=1,C9<3),3000,IF(AND(C9>0.5,C9<=1),1000,0))) -> 3600 | B59: Fixed costs | C59: =SUM(D59:S59) ->  | D59: =SUM(D60:D65) ->  | G59: =SUM(G60:G65) ->  | H59: =SUM(H60:H65) ->  | R59: =SUM(R60:R64) ->  | S59: =SUM(S60:S64) -> 
A60: 1200 | B60: Office - phones, internet, rent, power | D60: 100 | E60: 200 | F60: 240 | G60: =$A$60/2 -> 600 | H60: 600 | I60: 600 | J60: 600 | K60: 600 | L60: 600 | M60: 600 | N60: 600 | O60: 600 | P60: 600 | Q60: 600 | R60: 600 | S60: 600
A61: 0 | B61: Cars - fuel and maintenance | D61: 0 | E61: 0 | F61: 0 | G61: =$A$61/2 -> 0 | H61: =$A$61/2 -> 0 | I61: 0 | J61: 0 | K61: 0 | L61: 0 | M61: 0 | N61: 0 | O61: 0 | P61: 0 | Q61: 0 | R61: 0 | S61: 0
A62: 25200 | B62: Fin. reporting, Online Cash-Flow Control System | D62: 0 | E62: 1000 | F62: =$A$62/2 -> 12600 | G62: 12600 | H62: 12600 | I62: 12600 | J62: 12600 | K62: 12600 | L62: 12600 | M62: 12600 | N62: 12600 | O62: 12600 | P62: 12600 | Q62: 12600 | R62: 12600 | S62: 12600
A63: 0.027 | B63: Payroll, administration, p. ann. | C63: =Staff!G12+Staff!G26+Staff!G31 -> 339000 | D63: =(Staff!G19+Staff!G20+Staff!G21+Staff!G22)/3 -> 15600 | E63: =C63/3 -> 113000 | F63: =$C$63/2 -> 169500 | G63: =$C$63/2 -> 169500 | H63: =F63*(1+$A$63) -> 174076.5 | I63: 174076.5 | J63: 178776.5655 | K63: 178776.5655 | L63: 183603.5328 | M63: 183603.5328 | N63: 188560.8282 | O63: 188560.8282 | P63: 193651.9705 | Q63: 193651.9705 | R63: 198880.5737 | S63: 198880.5737
A64: ='Cap.Goods'!D45 ->  | B64: Insurance of building, products, cars | D64: ='Cap.Goods'!D43 ->  | E64: =A64-$D$64 ->  | F64: ='Cap.Goods'!$D$43 ->  | G64: =$A$64-$F$64 ->  | H64: ='Cap.Goods'!$D$43 ->  | I64: =$A$64-$F$64 ->  | J64: ='Cap.Goods'!$D$43 ->  | K64: =$A$64-$F$64 ->  | L64: ='Cap.Goods'!$D$43 ->  | M64: =$A$64-$F$64 ->  | N64: ='Cap.Goods'!$D$43 ->  | O64: =$A$64-$F$64 ->  | P64: ='Cap.Goods'!$D$43 ->  | Q64: =$A$64-$F$64 ->  | R64: ='Cap.Goods'!$D$43 ->  | S64: =$A$64-$F$64 -> 
A65: =0.13%*M78 -> 0.00273 | B65: of sales - marketing, exhibitions | C65: =Intro!U42 ->  | E65: =$A$65*$C$65 ->  | F65: =IF(AND($M$76>$A$67,F54>E54),$A$65*$C$65,E65) ->  | L65: =IF(AND($M$76>$A$67,L54>K54)*$C$65,K65) ->  | M65: =IF(AND($M$76>$A$67,M54>L54),$A$65*$C$65,L65) ->  | N65: =IF(AND($M$76>$A$67,N54>M54),$A$65*$C$65,M65) ->  | O65: =IF(AND($M$76>$A$67,O54>N54),$A$65*$C$65,N65) ->  | P65: =IF(AND($M$76>$A$67,P54>O54),$A$65*$C$65,O65) ->  | Q65: =IF(AND($M$76>$A$67,Q54>P54),$A$65*$C$65,P65) ->  | R65: =$A$65*$C$65 ->  | S65: =$A$65*$C$65 -> 
A67: 2018-03-22 | B67: Turnkey - start date of operation Restarted for corrections
A68: 3039-02-02T16:00:00 | E68: Years: | F68: 1 | G68: =F68+1 -> 2 | H68: 3 | I68: 4 | J68: 5 | K68: 6 | L68: 7 | T68: up
A69: Level ❸ | B69: PROFITABILITY ANALYSIS | D69: Up front investment: | E69: =-C18 ->  | F69: =F39+G39 ->  | G69: =H39+I39 ->  | H69: =J39+K39 ->  | I69: =L39+M39 ->  | J69: =N39+O39 ->  | K69: =P39+Q39 ->  | L69: =R39+S39 -> 
B70: 1-Yr period Operating Cash Flows | E70: Debt-Service Coverage Ratio = EBIT/Costs | F70: =SUM(G70:M70)/T70 ->  | G70: =(G29+G26)/G88 ->  | H70: =(I29+I26)/I88 ->  | I70: =(J29+J26)/J88 ->  | J70: =(K29+K26)/K88 ->  | K70: =(M29+M26)/M88 ->  | L70: =(O29+O26)/O88 ->  | M70: =(Q29+Q26)/Q88 ->  | T70: =MATCH(50,G70:S70) -> 
A71: Discounted Cash Flow Models | C71: The Investor can make enough in operating | F71: =IF(F70>=1.2,"Good","Bad") ->  | G71: Default Risk Management | K71: Operational Risk Management
A72: Section MEASURING PROFITABILITY | C72: profits to pay its current debt service costs. It is subject of fiscal year-end monitoring. | F72: DSCR | G72: Section | M72: Section "SENSITIVITY ANALYSIS"
F73: Level④ | G73: PAYBACK PERIOD | K73: Simulation of Good Market | M73: Enter A1 share | N73: Simulation of Bad Market
A74: Discount (hurdle) rate : | C74: 0.065 | D74: Loan Life Coverage Ratio | G74: Period: | H74: =D132 -> 0 | I74: =E132 ->  | K74: =IF(Bayes!C7>Bayes!C9,"A1","A2") -> A1 | L74: Salesman | M74: 67 | N74: =IF(Bayes!C7<Bayes!C9,"A1 ","A2") -> A2 | O74: Salesman
A75: Net Present Value (NPV for CADS) : | C75: =NPV(C74,E69:L69) ->  | D75: Unlike period-on-period measures such as the above DSCR, it provides the Lender with a measure of the number of times the cash flow over the scheduled loan life can repay the outstanding debt balance. | G75: Date: | H75: 2022-06-30 | I75: earliness | L75: 79 | M75: =M74/100 -> 0.67 | N75: =100-L75 -> 21
A76: IRR : | C76: =IRR(E69:L69) ->  | D76: 0.065 | E76: LLCR = | F76: =C75/A87 ->  | H76: Accelerated amortization of loans | K76: Good sales | M76: 2018-06-17 | N76: Bad sales Select→ | P76: distribution of sales.
A77: 1 | B77: Commercial bank, Own funds (Loan "D") | C77: =SUM(D77+E77) ->  | D77: ='Cap.Goods'!M36 ->  | E77: ='Cap.Goods'!N36 ->  | F77: 0 | H77: Update £ it now. | M77: . Correction factor for Area of critical announcement
M78: =IF(AND(L75>90,N75>60)," STOP! Calm down. You've just entered a field of dreams!",Bayes!P21) -> 2.1
B79: Loan "C" Local market vegetables | E79: 0 | F79: =Q10 -> 90000 | G79: =$R$10 -> 150000 | H79: =$Q$10 -> 90000 | I79: =$R$10 -> 150000 | J79: =$Q$10 -> 90000 | K79: =$R$10 -> 150000 | L79: =$Q$10 -> 90000 | M79: =$R$10 -> 150000 | N79: =$Q$10 -> 90000 | O79: =$R$10 -> 150000 | P79: =$Q$10 -> 90000 | Q79: =$R$10 -> 150000 | R79: =$Q$10 -> 90000 | S79: =$R$10 -> 150000
B80: =O16 -> 0 | C80: =C13 -> Date: | D80: 2019-06-30 | E80: 2019-12-31 | F80: 2020-06-30 | G80: 2020-12-31 | H80: 2021-06-30 | I80: 2021-12-31 | J80: 2022-06-30 | K80: 2022-12-31 | L80: 2023-06-30 | M80: 2023-12-31 | N80: 2024-06-30 | O80: 2024-12-31 | P80: 2025-06-30 | Q80: 2025-12-31 | R80: 2026-06-30 | S80: 2026-12-31
B81: LOANS Number of Periods | C81: =C12 -> Nr of Monts | F81: =E12 -> 12 | G81: 18 | H81: 24 | I81: 30 | J81: 36 | K81: 42 | L81: 48 | M81: 54 | N81: 60 | O81: 66 | P81: 72 | Q81: 78 | R81: =P12 -> 78 | S81: =Q12 -> 84
B82: Nr. of periods | C82: =MATCH(50,E82:S82) -> 15 | E82: 1 | F82: =E82+1 -> 2 | G82: =F82+1 -> 3 | H82: =G82+1 -> 4 | I82: 5 | J82: 6 | K82: 7 | L82: 8 | M82: 9 | N82: 10 | O82: 11 | P82: 12 | Q82: 13 | R82: 14 | S82: =R82+1 -> 15
B83: Nr. of principal period repayments | C83: =MATCH(50,F83:S83) -> 14 | F83: =D11 -> 1 | G83: 2 | H83: 3 | I83: 4 | J83: 5 | K83: 6 | L83: 7 | M83: 8 | N83: 9 | O83: 10 | P83: 11 | Q83: 12 | R83: 13 | S83: 14
A85: TOTAL: | B85: Loan "A", Balance liabilities | C85: =C16 -> 0 | D85: =C85 -> 0 | E85: =D85 -> 0 | F85: =E85 -> 0 | G85: =F85-F87 -> 0 | H85: =G85-G87 -> 0 | I85: =H85-H87 -> 0 | J85: 0 | K85: 0 | L85: =K85-K87 -> 0 | M85: =L85-L87 -> 0 | N85: =M85-M87 -> 0 | O85: =N85-N87 -> 0 | P85: 0 | Q85: =P85-P87 -> 0 | R85: =Q85-Q87 -> 0 | S85: =R85-R87 -> 0
A86: =SUM(G86:S86) -> 0 | B86: Interest payments | C86: ='Cap.Goods'!G38 -> 0.04 | G86: =-ROUND(IPMT($C$86/2,F83,$C$83,F85),0) -> 0 | H86: 0 | I86: 0 | J86: 0 | K86: 0 | L86: 0 | M86: 0 | N86: 0 | O86: 0 | P86: 0 | Q86: 0 | R86: 0 | S86: 0 | T86: =SUM(G86:R86) -> 00:00:00
A87: =SUM(G87:S87) -> 0 | B87: Principal installments | G87: =-ROUND(PPMT($C$86/2,F83,$C$83,$C$85),0) -> 0 | H87: 0 | I87: 0 | J87: 0 | K87: 0 | L87: 0 | M87: 0 | N87: 0 | O87: 0 | P87: 0 | Q87: 0 | R87: 0 | S87: 0 | T87: =SUM(G87:R87) -> 00:00:00
A88: =SUM(A86:A87) -> 0 | B88: Installments, TOTAL: | C88: =SUM(D88:Q88) -> 0 | D88: =SUM(D86:D87) -> 0 | E88: 0 | F88: 0 | G88: 0 | H88: 0 | I88: 0 | J88: 0 | K88: =SUM(K86:K87) -> 0 | L88: 0 | M88: 0 | N88: 0 | O88: 0 | P88: 0 | Q88: 0 | R88: 0 | S88: 0
A90: TOTAL: | B90: Loan "B", Balance liabilities | C90: =C17 ->  | D90: =D17 ->  | E90: =D90+E17 ->  | F90: =E90+F17 ->  | G90: =F90-F92 ->  | H90: =G90-G92 ->  | I90: =H90-H92 ->  | J90: =I90-I92 ->  | K90: =J90-J92 ->  | R90: =Q90-Q92 ->  | S90: =R90-R92 -> 
A91: =SUM(D91:S91) ->  | B91: Interest payments | C91: ='Cap.Goods'!H38 -> 0.04 | E91: =-ROUND(IPMT($C$91/2,E82,$C$82,D90),0) ->  | F91: =-ROUND(IPMT($C$91/2,F82,$C$82,E90),0) ->  | G91: =-ROUND(IPMT($C$91/2,G82,$C$82,F90),0) ->  | H91: =-ROUND(IPMT($C$91/2,H82,$C$82,G90),0) ->  | I91: =-ROUND(IPMT($C$91/2,I82,$C$82,H90),0) ->  | J91: =-ROUND(IPMT($C$91/2,J82,$C$82,I90),0) ->  | P91: =-ROUND(IPMT($C$91/2,P82,$C$82,O90),0) ->  | Q91: =-ROUND(IPMT($C$91/2,Q82,$C$82,P90),0) ->  | R91: =-ROUND(IPMT($C$91/2,R82,$C$82,Q90),0) ->  | S91: =-ROUND(IPMT($C$91/2,S82,$C$82,R90),0) ->  | T91: =SUM(G91:R91) -> 
A92: =SUM(D92:Q92) ->  | B92: Principal installments | C92: =ROUND(SUM(D92:S92),-1) ->  | G92: =-ROUND(PPMT($C$91/2,F83,$C$83,$C$90),0) -> 
A93: =SUM(D93:S93) ->  | B93: Installments, TOTAL: | C93: =SUM(D93:Q93) ->  | D93: =SUM(D91:D92) -> 0 | E93: =SUM(E91:E92) ->  | F93: =SUM(F91:F92) ->  | G93: =SUM(G91:G92) ->  | H93: =SUM(H91:H92) ->  | I93: =SUM(I91:I92) ->  | J93: =SUM(J91:J92) ->  | K93: =SUM(K91:K92) ->  | P93: =SUM(P91:P92) ->  | Q93: =SUM(Q91:Q92) ->  | R93: =SUM(R91:R92) ->  | S93: =SUM(S91:S92) -> 
A94: Diversification following from Risk Assessment
A95: OPERATIONAL TEST } Balance liabilities | C95: =C77 ->  | D95: =D77 ->  | E95: =D95+E77 ->  | F95: =E95+F77 ->  | G95: =F95-F97 ->  | H95: =G95-G97 ->  | I95: =H95-H97 ->  | R95: =Q95-Q97 ->  | S95: =R95-R97 -> 
A96: =ROUND(SUM(D96:Q96),-1) ->  | B96: Interest payments | C96: ='Cap.Goods'!M38 -> 0.055 | E96: =-ROUND(IPMT($C$96/2,E82,$C$82,D95),0) ->  | F96: =-ROUND(IPMT($C$96/2,F82,$C$82,E95),0) ->  | G96: =-ROUND(IPMT($C$96/2,G82,$C$82,F95),0) ->  | H96: =-ROUND(IPMT($C$96/2,G83,$C$83,G95),0) ->  | T96: =SUM(G96:R96) -> 
B97: Principal deferred payments | C97: =C77 ->  | G97: =-ROUND(PPMT($C$96/2,F83,$C$83,$C$95),0) ->  | H97: =-ROUND(PPMT($C$96/2,H82,$C$82,$C$95),0) ->  | I97: =-ROUND(PPMT($C$96/2,I82,$C$82,$C$95),0) ->  | Q97: =-ROUND(PPMT($C$96/2,Q82,$C$82,$C$95),0) ->  | R97: =-ROUND(PPMT($C$96/2,R82,$C$82,$C$95),0) ->  | S97: =-ROUND(PPMT($C$96/2,S82,$C$82,$C$95),0) -> 
B98: Installments, TOTAL: | E98: =SUM(E96:E97) ->  | F98: =SUM(F96:F97) ->  | G98: =SUM(G96:G97) ->  | H98: =SUM(H96:H97) ->  | I98: =SUM(I96:I97) ->  | R98: =SUM(R96:R97) ->  | S98: =SUM(S96:S97) -> 
A100: =A86+A91+A96 ->  | B100: GRAPHS | D100: 1 | E100: =D100+1 -> 2 | F100: =E100+1 -> 3 | G100: 4 | H100: 5 | I100: 6 | J100: 7 | K100: 8 | L100: 9 | M100: 10 | N100: 11 | O100: 12 | P100: =O100+1 -> 13 | Q100: =P100+1 -> 14 | R100: =Q100+1 -> 15 | S100: =R100+1 -> 16
B101: Total balance liabilities, Loan "A" | D101: =D85 -> 0 | E101: 0 | F101: =F85 -> 0 | G101: 0 | H101: 0 | I101: =I85 -> 0 | J101: 0 | K101: 0 | L101: 0 | M101: 0 | N101: 0 | O101: 0 | P101: 0 | Q101: 0 | R101: =R85 -> 0 | S101: =S85 -> 0
B102: OPERATING PERIOD } Total balance liabilities "A" | C102: IN OPERATION | D102: =D85 -> 0 | E102: =E85 -> 0 | F102: =F85 -> 0 | G102: =G85 -> 0 | H102: =H85 -> 0 | I102: =I85 -> 0 | J102: 0 | K102: 0 | L102: 0 | M102: 0 | N102: 0 | O102: 0 | P102: 0 | Q102: 0 | R102: =R85 -> 0 | S102: =S85 -> 0
A103: =IF(SUM(G86:Q86)=C85,"True","False") -> True | B103: Cash | D103: =D39 -> 
B104: Cash Cumulative | D104: =D40 -> 
B105: Operating cash cumulative | D105: =D35 ->  | E105: =D35+E35 ->  | F105: =E35+F35 ->  | G105: =F35+G35 ->  | H105: =H125 -> 
T106: up
C122: Debt Rate | D122: =D102/$C$18 -> 
C123: Start date
B124: Auxiliary rows: Crossing point of cash and debt | C124: =D80 -> 2019-06-30 | D124: 1 | E124: =D124+1 -> 2 | F124: =E124+1 -> 3 | G124: 4 | H124: 5 | I124: 6 | J124: 7 | K124: 8 | L124: 9 | M124: 10 | N124: =M124+1 -> 11 | O124: 12 | P124: 13 | Q124: 14 | R124: 15 | S124: 16
B125: Payback > cumulate OCFs | C125: =MATCH(A128,D105:Q105) ->  | D125: =$D$35 ->  | E125: =D125+$E$35 ->  | F125: =E125+$F$35 ->  | G125: =F125+$G$35 ->  | H125: =G125+$H$35 ->  | I125: =H125+$I$35 ->  | J125: =I125+$J$35 ->  | K125: =J125+$K$35 ->  | L125: =K125+$L$35 ->  | M125: =L125+$M$35 ->  | N125: =M125+$N$35 ->  | O125: =N125+$O$35 ->  | P125: =O125+$P$35 ->  | Q125: =P125+$Q$35 ->  | R125: =Q125+$Q$35 ->  | S125: =R125+$Q$35 -> 
B126: repayment estimatior row | C126: =DATE(YEAR(C124)+C125,MONTH(C124)+2,DAY(C124+7)) ->  | D126: =CHOOSE(C125,E80,F80,G80,H80,I80,J80,K80,L80,M80,N80,O80,P80,Q80) ->  | E126: =C125*6 ->  | F126: =E126/12 ->  | G126: =ROUNDUP(F126,0) ->  | H126: =G126-F126 ->  | I126: =H126*12 -> 
B127: auxiliary row | C127: Payback date | E127: =(D126-E80)/12 ->  | F127: =ROUNDDOWN(E127,0) ->  | G127: =E127-F127 ->  | H127: =G127*12 ->  | I127: =IF(H127=12,F127+1,F127) ->  | J127: =IF(H127=12,0,H127) -> 
A128: =C86 -> 0.04 | B128: Base forecast
A129: =D132*365+1+E132*30+4 ->  | B129: Yr: | D129: 1 | E129: 2 | F129: 3 | G129: 4 | H129: 5 | I129: 6 | J129: 7 | K129: 8
A130: =A129/(365+1) ->  | B130: AnnNCinF | D130: =D39+E39 ->  | E130: =F39+G39 ->  | F130: =H39+I39 ->  | G130: =J39+K39 ->  | H130: =L39+M39 ->  | I130: =N39+O39 ->  | J130: =P39+Q39 -> 
A131: =D21 -> 2019-06-30 | B131: Comulative | D131: =D130 ->  | E131: =D131+E130 -> 
A132: =A131+A129 ->  | B132: Period | D132: =COUNTIF(D131:J131,"<"&A128) -> 0 | E132: =F132*12/10 ->  | F132: =(A128-HLOOKUP(COUNTIF(D131:J131,"<"&A128),D129:J131, 3,0))/(HLOOKUP(COUNTIF(D131:J131,"<"&A128)+1,D129:J131,2,0))*12 -> 
E133: Ê | F133: Indicates the fraction of the year
D136: 0.229 | E136: 0.1787 | F136: 0.1422 | G136: 0.0655 | H136: 0.0199 | I136: 0.0019 | J136: 0 | K136: 0 | L136: 0.012 | M136: 0.0644 | N136: 0.08 | O136: 0.2064 | P136: =SUM(D136:O136) -> 1

Sheet Income
B1: INCOME | C1: Exchange Rate | E1: Price
B2: PRICING - ELECTRICITY | C2: 0.01625 | D2: MKD/kWh | E2: €/kWh
A3: A. | B3: EVN MAKEDONIJA AD, Average supply. PRICE for the tariff consumers: | D3: 4.731 | E3: =$C$2*D3 -> 0.07687875
B4: AD ELEM - Skopje Production price | D4: 2.3704 | E4: =$C$2*D4 -> 0.038519
B5: AD MEPSO - Skopje Transmission tariff | D5: 0.2722 | E5: =$C$2*D5 -> 0.00442325
B6: T.O.M. - Skopje Tariff for marketing, organization and management | D6: 0.0187 | E6: =$C$2*D6 -> 0.000303875
A7: B. | B7: Price of electric energy: ELEM + MEPSO + T.O.M. = Price of 110 kV: | D7: =SUM(D4:D6) -> 2.6613 | E7: =SUM(E4:E6) -> 0.043246125
B8: Middle value of payment (A. - B.): | D8: =D3-D7 -> 2.0697 | E8: =(E3-E7) -> 0.033632625
C9: € p.h | D9: € p.h | E9: € p.h
B10: 1 | C10: 10 | D10: 40 | E10: 80
B11: =E8 -> 0.033632625 | C11: =$E$8*C10*1000 -> 336.32625 | D11: =$E$8*D10*1000 -> 1345.305 | E11: =$E$8*E10*1000 -> 2690.61
B12: p.Yr → | C12: =C11*24*365 -> 2946217.95 | D12: =D11*24*365 -> 11784871.8 | E12: =E11*24*365 -> 23569743.6
A13: Stages:
A14: u | B14: Profit from 100% usage of the power from one standard transformer of→ multiplied by difference between the prices A.― B. herein above p.Yr→ | D14: 12.7
D15: =D8*$D$14*1000 -> 26285.19 | E15: =E8*$D$14*1000 -> 427.1343375
B16: ( x 24 h x 365 ) p.Yr→ | D16: =D15*24*365 -> 230258264.4 | E16: =E15*24*365 -> 3741696.796
A17: v | B17: Increasing the power up to 80 MW with replacement of the two trans-formers of 12.7 MW with 2 x 40 MW = 80 MW and with 50% usage, p.Yr → | D17: =D10 -> 40 | E17: =D12 -> 11784871.8
A19: w | B19: Adding a new Transformer Field 3 with ETR 3 and with power 120 MW from 3 x 40 MW with space of 40 MW for reduce the risk, so usage p.Yr →
D20: =E10 -> 80 | E20: =E12 -> 23569743.6
A22: x | B22: Adding a new Transformer Field 4 with ETR 4 and with power 160 MW from 4 x 40 MW with space of 40 MW for reduce the risk, so usage p.Yr →
D23: 120 | E23: =E8*1000*D23*24*365 -> 35354615.4
B25: PRICING - ELECTRICITY
A26: 1 | B26: Households subject to SINGLE-TARIFF metering | D26: 4.45 | E26: =$C$2*D26 -> 0.0723125
A27: =A26+1 -> 2 | B27: Households subject to TWO-TARIFF metering peak tariff | D27: 5.54 | E27: 0.090025
A28: =A27+1 -> 3 | B28: Households subject to TWO-TARIFF metering off-peak tariff | D28: 2.78 | E28: 0.045175
A29: 4 | B29: Consumers subject to I degree tariff (power) | D29: 746.5 | E29: 12.130625
A30: 5 | B30: Consumers subject to I degree tariff (energy) peak tariff | D30: 3.57 | E30: 0.0580125
A31: 6 | B31: Consumers subject to I degree tariff (energy) | D31: 1.76 | E31: 0.0286
A32: 7 | B32: Consumers subject to I degree tariff (energy) peak tariff | D32: 0.88 | E32: 0.0143
A33: 8 | B33: Consumers subject to I degree tariff (energy) off-peak tariff | D33: 0.45 | E33: 0.0073125
A34: 9 | B34: Consumers subject to II degree tariff(energy) single tariff | D34: 8.64 | E34: 0.1404
A35: 10 | B35: Consumers subject to II degree tariff (energy) single tariff | D35: 5.56 | E35: 0.09035
B36: http://www.erc.org.mk/Default_en.aspx
B38: EVN MAKEDONIJA AD - Skopje Distribution tariff | D38: 1.7098
B39: AD ELEM ENERGETIKA Distribution tariff | D39: 0.1176
B40: AD ELEM ENERGETIKA Average supply price for the tariff consumers | D40: 2.9437
B41: Consumers connected to the distribution system 35 kV | D41: 4.12
B42: Consumers connected to the distribution system 35 kV by way of direct connection | D42: 4.86
B44: Consumers connected to the distribution system 10 (20) kV | D44: 4.72

Sheet Bayes
A1: CHAPTER 1 | B1: DECISION ANALYSIS | L1: Name of Project
A2: Level④ | B2: POSTERIOR PROBABILITIES OF TWO EVENTS | L2: =Intro!H6 -> 0
A4: Background: | B4: You are producer and supplier of high quality vegetables to two salesmen on large nets of European wholesale markets. Let A1 and A2 denoted two events of interest—different quantiies for sales.
A5: Historical Info: | B5: Enter new data below. If except these two events of interest there are more probabilities indicated by the Online Cash-Flow Control System, go to the next Sheet "Bayes5" .
A7: Event A1: part of QUANTITY for Salesman A1 → | C7: =BUDGET!M75 -> 0.67 | D7: Percentage of prior probability for sale on the market. | J7: The mutually exclusive events for which posterior probabilities are desired.
J8: My events of interest:
A9: Event A2: part of QUANTITY for Salesman A2 → | C9: =100%-C7 -> 0.33 | D9: Percentage supplied to A2 I | F9: → low quality of commercial service - term → of deferred payment and lower income. | J9: Which of both market distributors sells our products on the better prices and pays us faster?
F10: In analyzing of conditional prior probability for specific events of interest here are indicated probabilities giving new information for their revision
A11: Event A1: QUALITY Good services for Salesman A1 → | C11: =BUDGET!L75/100 -> 0.79 | D11: Percentage Good sаlеs and payments (G) | F11: Based on pre-design marketing the values of prior conditional probabilities of professional ratings of the two salesmen and their markets are shown in the Table. This prior probability will be revised in light of new operational information Income streams when appear problems, what is the probability and what part is due to each Sales-man? The Joint Bad Probabilities are found by multiplying the prior probabilities by the Conditional Probabilities = equal to Overall probability of finding the Bad part of commercial outsourcing, and for further improvement.
A13: Event A2: QUALITY Bad services for Salesman A2 → | C13: =BUDGET!N75/100 -> 0.21 | D13: Percentage Bad sаlеs and payment (B)
A15: Safe Event | C15: SALES REVENUE EVENTS | E15: PRIOR PROBABILITY | G15: POSTERIOR | K15: TABULAR APPROACH
A16: Restore Model | B16: When Yu pay - cry | C16: Percentage of total Sаlеs | D16: Percentage Bad QUALITY Sаlеs | E16: QUANTITY % from A1∩A2 Sаlеs | G16: PROBABILITIES that Bad part of sales is: | K16: A1U A2 Prior Probabilities | L16: B Conditional Probabilities | M16: Joint Bad A1, 2 ∩ B | N16: Posterior Probabilities | P16: Others cry
A18: Clean Model | B18: Salesman A1 | C18: =C7 -> 0.67 | D18: =1-C11 -> 0.21 | E18: =C7 -> 0.67 | G18: From Salesman A1: | I18: =D18*E18/(D18*E18+D20*E20) -> 0.67 | K18: =C18 -> 0.67 | L18: =D18 -> 0.21 | M18: =K18*L18 -> 0.1407 | N18: =M18/M21 -> 0.67
B20: Salesman A2 | C20: =C9 -> 0.33 | D20: =C13 -> 0.21 | E20: =1-E18 -> 0.33 | G20: From Salesman A2: | I20: =D20*E20/(D18*E18+D20*E20) -> 0.33 | K20: =C20 -> 0.33 | L20: =D20 -> 0.21 | M20: =K20*L20 -> 0.0693 | N20: =M20/M21 -> 0.33
A21: ANALYSIS: | B21: On relative basis: the probability of the Bad event, coming from Salesman А2 [ | F21: =N20 -> 0.33 | G21: ] compared [ | H21: =N18 -> 0.67 | I21: ] from Good A1. | K21: =K18+K20 -> 1 | L21: To the new info given each event | M21: =SUM(M18:M20) -> 0.21 | N21: =N18+N20 -> 1 | P21: =M21*10+O21*1 -> 2.1
B22: There is a greater likelihood Bad event to be observed because outcome as [ | F22: =M20 -> 0.0693 | G22: ] following [ | H22: =N20 -> 0.33 | I22: ] A2 Bad event could be a crash. | M22: Overall <probability of Bad event=
A24: CLOSING:
A26: Constructed using "Quantitative Methods for Business" (Fifth edition); David R. Anderson, University of Cincinnati, Dennis J. Sweeney, University of Cincinnati, Thomas A. Williams, Rochester Institute of Technology; Library of Congress Cataloging-in-Publication Data.
A28: COMMENTS: | B28: It is well known and certainly recommendable that to start an investment project, the investor (and his team making inside risk assessment) must be convinced, must believe in the good outcome, and he must act decisively, without any hesitation. Very often, this is reflected in a low assessment of the Default Risk Ratio (d--Factor) that is raising its real impact. In such cases we approach the above probability estimation, often called “what-if” analysis. It follows the High Qualified Audit, in this Risk Assessment program recognized as "Group D".
B31: Excerpts from the comments of our clients of this model: ". . . default risk assessment is the starting point which most frequently cause disputes with the lenders, very often ending with denial of funding, no matter what the finally stated reason was." Look at the picture below, which is the most popular example of visible illusion.
C34: We are looking out to the market and don’t see a big risk to become unable to pay back our debt. | K34: Who is right, when the lengths of the lines are equal? . . . "
C36: The lenders are only looking within themselves, see plenty of big risks, and talk only about it.
B38: In making a decision for new investments never believe and rely solely on: ① your intuition, based on long-term experience; ② suggestions of high level experts; and ③ good chance.
B39: Rely only on risk assessment and computing of prior and posterior probability of specific events of interest. Once you have them, return to the above approaches for the final decision.
B40: The assessment of Default Risk (d ) to an acceptable level is a key factor for the positive resolution of a loan application. The system, called OCFCS for short, which we recommend is an instrument that serves post factum an investment throughout the project providing permanent online information to the lender, insurer and to the investor.
A44: RECORD: | B44: PROJECT NAME | D44: QUALITY | F44: QUANTITY | H44: The event . . .
B45: (or Investor Name) | D45: AGENT A1 | E45: AGENT A2 | F45: AGENT A1
B46: =L2 -> 0 | D46: 0.98 | E46: 0.95 | G46: 0.65 | H46: Agents distribute in their countries these percentages of KEM's products.
A48: Keep these h cells free for longer project name extension

Sheet Staff
D1: лв./$ exchange rate: | E1: 1 | F1: 1.52 | I1: =Intro!C84 -> 5.8368 | J1: Area
D2: USD/EUR exchange rate: | E2: 1 | F2: 1.05
D3: EUR/лв. exchange rate: | E3: 1 | F3: 1.96 | L3: Supporting Column
C5: OCFCS & Trading Consulting Company | F5: STAFF - Start Salaries
D6: PERSONNEL, Position | E6: % | F6: € p.Мо | G6: p.ann | H6: € p.Mo | J6: 0
E7: Remuneration | H7: ₊Bonus
D8: WORKING ТЕАМ | H8: (conditional)
C9: 1 | D9: Manager | E9: 0.5 | F9: 1000 | G9: =E9*F9*$J$16 -> 6000 | H9: 100 | I9: =E9*(F9+G9) -> 3500 | J9: =E9*I9*$J$6 -> 0
C10: =C9+1 -> 2 | D10: Expert risk management | E10: 0.5 | F10: 600 | G10: =E10*F10*$J$16 -> 3600 | H10: 75 | I10: 0 | J10: =I10*$J$6 -> 0
C11: =C10+1 -> 3 | D11: Expert financial control | E11: 0.5 | F11: 600 | G11: =E11*F11*$J$16 -> 3600 | H11: 50 | I11: 0 | J11: =I11*$J$6 -> 0
D12: TOTAL: | E12: =E8 -> 0 | G12: =SUM(G9:G11) -> 13200 | J12: =SUM(J9:J11) -> 0
C15: Project Company TomCuC, Ltd. | F15: STAFF - Start Salaries
D16: PERSONNEL, Position | E16: Nr | F16: € p.Мо | G16: p.ann | H16: € p.Mo | J16: 12
F17: Base salary | G17: Fixed | H17: ₊Bonus | I17: TOTAL
D18: ASMINISTRATION | E18: =SUM(E19:E22) -> 6 | F18: salary | G18: salary | H18: (conditional)
C19: 1 | D19: CEO - Manager | E19: 1 | F19: 1000 | G19: =E19*F19*$J$16 -> 12000 | H19: 300 | I19: =F19+H19 -> 1300 | J19: =E19*I19*$J$16 -> 15600
C20: =C19+1 -> 2 | D20: Senior level technicans | E20: 2 | F20: 800 | G20: =E20*F20*$J$16 -> 19200 | H20: 200 | I20: =F20+H20 -> 1000 | J20: =E20*I20*$J$16 -> 24000
C21: =C20+1 -> 3 | D21: Mid-level tehnicans | E21: 2 | F21: 400 | G21: =E21*F21*$J$16 -> 9600 | H21: 100 | I21: =F21+H21 -> 500 | J21: =E21*I21*$J$16 -> 12000
C22: =C21+1 -> 4 | D22: Accountant | E22: 1 | F22: 500 | G22: =E22*F22*$J$16 -> 6000 | H22: 50 | I22: =F22+H22 -> 550 | J22: =E22*I22*$J$16 -> 6600
D23: SERVICE STAFF | E23: =SUM(E24:E25) -> 5
C24: =C22+1 -> 5 | D24: Truckers | E24: 1 | F24: 500 | G24: =E24*F24*$J$16 -> 6000 | H24: 50 | I24: =F24+H24 -> 550 | J24: =E24*I24*$J$16 -> 6600
C25: =C24+1 -> 6 | D25: Security | E25: 4 | F25: 400 | G25: =E25*F25*$J$16 -> 19200 | H25: 0 | I25: =F25+H25 -> 400 | J25: =E25*I25*$J$16 -> 19200
D26: SubTOTAL: | E26: =E18+E23 -> 11 | G26: =SUM(G19:G25) -> 72000 | J26: =SUM(J19:J25) -> 84000
C28: 90 | D28: PRODUCTION STAFF | E28: =E29 -> 45
C29: 7 | D29: Payroll staff, p Mo | E29: =IF(AND($I$1>=10,C28>0),C28,IF(OR($I$1>=3,$I$1<=6),C28*1/2,IF(OR($I$1>=1,$I$1<3),30,0))) -> 45 | F29: 400 | G29: =E29*F29*$J$16 -> 216000 | H29: 100 | I29: =F29+H29 -> 500 | J29: =E29*I29*$J$16 -> 270000
D30: Social Security (averaged) | G30: =G29*I30 -> 37800 | I30: =I37 -> 0.175 | J30: =I30*J29 -> 47250
D31: SubTOTAL: | G31: =G29+G30 -> 253800 | J31: =SUM(J29:J30) -> 317250
D33: TomCuC HH, Ltd., TOTAL: | E33: =E26+E28 -> 56 | J33: =J26+J29 -> 354000
D37: Social Security (averaged) | I37: 0.175 | J37: =I37*(J12+J26) -> 14700
D38: TOTAL: | J38: =J12+J33+J37 -> 368700
C41: * | D41: Consequence of the need of Effective System of Internal Control during the repayment period.
D42: It must have to this position special Assignment of Responsibilities combining virtual treasurer and controller.
D43: He should have Limited Proper Authorization during the loan repayment period only.

Sheet Bayes5
A1: CHAPTER 1 | F1: DECEISION ANALYSES | P1: Name of Project
A2: Budget | B2: POSTERIOR PROBABILITIES OF FIVE EVENTS | P2: ='Cap.Goods'!E3 -> Zoom 150 Capital Goods and Services - First Part
A4: Background: | B4: Five mutually exclusive events following delivery of goods or services by Suppliers where one of the events must occur when new information
A5: Clean and Start | B5: from a sample, a special report, a product test, and so on, about it is received. Henceforth, you have to revise or update the prior probability values.
A6: Historical Info: | B6: Good quality event  ENTER | H6: Complete here the here Bad parts or services received from each supplier .
C7: QUALITY | G7: QUANTITY | I7: POSTERIOR PROBABILITY | K7: CONDITIONAL | M7: FINAL | O7: NOTES
C8: % Good | E8: % Bad | G8: % from | I8: that Bad event is: | K8: Joint Bad A1,2 ∩B | M8: for Ai
A9: Event A1 from: | B9: Supplier A1 (Subcontractor) | E9: =1-C9 -> 1 | I9: =100*E9*G9/($E$9*$G$9+$E$11*$G$11+$E$13*$G$13+$E$15*$G$15+$E$17*$G$17) -> 0 | K9: =100*G9*E9 -> 0 | M9: =K9/$K$19 -> 0
A11: Event A2 from: | B11: Supplier A2 (Subcontractor) | E11: =1-C11 -> 1 | I11: =100*E11*G11/($E$9*$G$9+$E$11*$G$11+$E$13*$G$13+$E$15*$G$15+$E$17*$G$17) -> 0 | K11: =100*G11*E11 -> 0 | M11: =K11/$K$19 -> 0
A13: Event A3 from: | B13: Supplier A3 (Subcontractor) | E13: =1-C13 -> 1 | I13: =100*E13*G13/($E$9*$G$9+$E$11*$G$11+$E$13*$G$13+$E$15*$G$15+$E$17*$G$17) -> 0 | K13: =100*G13*E13 -> 0 | M13: =K13/$K$19 -> 0
A15: Event A4 from: | B15: Supplier A4 (Subcontractor) | E15: =1-C15 -> 1 | I15: =100*E15*G15/($E$9*$G$9+$E$11*$G$11+$E$13*$G$13+$E$15*$G$15+$E$17*$G$17) -> 0 | K15: =100*G15*E15 -> 0 | M15: =K15/$K$19 -> 0
A17: Event A5 from: | B17: Supplier A5 (Subcontractor) | E17: =1-C17 -> 1 | G17: =1-SUM(G9:G15) -> 1 | I17: =100*E17*G17/($E$9*$G$9+$E$11*$G$11+$E$13*$G$13+$E$15*$G$15+$E$17*$G$17) -> 100 | K17: =100*G17*E17 -> 100 | M17: =K17/$K$19 -> 1
A19: See Comments | K19: =SUM(K9:K18) -> 100 | M19: =SUM(M9:M18) -> 1
K20: Overall<probability of happen Bad event

Sheet Expenses
B1: КАПИТАЛНИ ТРОШОЦИ | D1: Single Prs | E1: СЕ ВКУПНО | G1: CAPITAL EXPENSES | I1: Single Prs | J1: Total
D2: € | H2: Nr | I2: € | J2: €
A3: 1 | B3: Постројка ТС 110/20kV со 2 ЕТР Документација со државни институции, изработка и ревизија на основен проект, градежна дозвола | C3: 1 | D3: 150000 | E3: =C3*D3 -> 150000 | F3: 1 | G3: Station TS 110 / 20kV with 2 ETR documentation with state institutions, preparation and revision of basic project, building permit | H3: 1 | I3: 150000 | J3: =H3*I3 -> 150000
A4: =A3+1 -> 2 | B4: Постројка ТС 110/20kV со 2 ДВ + 2 ТР полиња и 2 ЕТР | F4: =F3+1 -> 2 | G4: Station TS 110 / 20kV with 2 TR fields and 2 ETC
A5: 2.1. | B5: Градежни работи парче | C5: 1 | D5: 814000 | E5: =C5*D5 -> 814000 | F5: 2.1. | G5: Building works sincle | H5: 1 | I5: 814000 | J5: =H5*I5 -> 814000
A6: 2.2. | B6: 110 kV построение парче | C6: 2 | D6: 300000 | E6: =C6*D6 -> 600000 | F6: 2.2. | G6: 118 kv building sincle | H6: 2 | I6: 300000 | J6: =H6*I6 -> 600000
A7: 2.3. | B7: 20 kV построение парче | C7: 1 | D7: 200000 | E7: =C7*D7 -> 200000 | F7: 2.3. | G7: 20 kv building sincle | H7: 1 | I7: 200000 | J7: =H7*I7 -> 200000
A8: 2.4. | B8: НН инсталација, управување и релејна заштиа парче | C8: 1 | D8: 350000 | E8: =C8*D8 -> 350000 | F8: 2.4. | G8: NN installation, management and relay protection sincle | H8: 1 | I8: 350000 | J8: =H8*I8 -> 350000
A9: 2.5. | B9: Eнергетски трансформатори 40 МВА | C9: 2 | D9: 700000 | E9: =C9*D9 -> 1400000 | F9: 2.5. | G9: Energy Transformers 40 MW | H9: 2 | I9: 700000 | J9: =H9*I9 -> 1400000
B10: Вкупно: | E10: =SUM(E5:E9) -> 3364000 | G10: SubTotal: | J10: =SUM(J5:J9) -> 3364000
A11: 3 | B11: Разводни постројки | F11: 3 | G11: Distribution plants
A12: 3.1. | B12: 20 kV Разводна постројка Алумина | C12: 1 | D12: 200000 | E12: =C12*D12 -> 200000 | F12: 3.1. | G12: 20 kV building sincle Alumina | H12: 1 | I12: 200000 | J12: =H12*I12 -> 200000
A13: 3.2. | B13: 20 kV Разводна постројка Лимак | C13: 1 | D13: 200000 | E13: =C13*D13 -> 200000 | F13: 3.2. | G13: 20 kV building sincle Limak | H13: 0 | I13: 200000 | J13: =H13*I13 -> 0
A14: 3.3 | B14: 20 kV Разводна постројка Визбегово | C14: 1 | D14: 200000 | E14: =C14*D14 -> 200000 | F14: 3.3 | G14: 20 kV building sincle Vizbegovo | H14: 0 | I14: 200000 | J14: =H14*I14 -> 0
A15: 3.4. | B15: Документација ,одобренија ,испитувања… | C15: 1 | D15: 150000 | E15: =C15*D15 -> 150000 | F15: 3.4. | G15: Documentation, approvals, surveys ... | H15: 1 | I15: 150000 | J15: =H15*I15 -> 150000
B16: Вкупно: | E16: =SUM(E12:E15) -> 750000 | G16: SubTotal: | J16: =SUM(J12:J15) -> 350000
A17: 4 | B17: Планирани 20 kV кабловски врски | F17: 4 | G17: Planned 20 kV cable connections
A18: 4.1. | B18: 20 kV кабловски врски до Алумина | C18: 2 | D18: 200000 | E18: =C18*D18 -> 400000 | F18: 4.1. | G18: 20 kV cable connections to Alumina | H18: 2 | I18: 200000 | J18: =H18*I18 -> 400000
A19: 4.2. | B19: 20 kV кабловски врски од Алумина / Визбегово | C19: 2 | D19: 275000 | E19: =C19*D19 -> 550000 | F19: 4.2. | G19: 20 kV cable connections from Alumina to→q Vizbegovo | H19: 0 | I19: 275000 | J19: =H19*I19 -> 0
A20: 4.3 | B20: 20 kV кабловски врски до Алумина / Лимак | C20: 2 | D20: 275000 | E20: =C20*D20 -> 550000 | F20: 4.3 | G20: 20 kV cable connections from Alumina to→q Limak | H20: 0 | I20: 275000 | J20: =H20*I20 -> 0
A21: 4.4 | B21: Документација, одобренија, испитувања … | C21: 1 | D21: 150000 | E21: =C21*D21 -> 150000 | F21: 4.4 | G21: Documentation, approved, surveyed ... | H21: 1 | I21: 150000 | J21: =H21*I21 -> 150000
B22: Вкупно: | E22: =SUM(E18:E21) -> 1650000 | G22: SubTotal: | J22: =SUM(J18:J21) -> 550000
A23: 5 | B23: 20/04 kV трансформаторски станици | F23: 5 | G23: 20/40 kV transformer stations
A24: 5.1. | B24: Документација парче | C24: 1 | D24: 80000 | E24: =C24*D24 -> 80000 | F24: 5.1. | G24: Documentation single | H24: 1 | I24: 80000 | J24: =H24*I24 -> 80000
A25: 5.2 | B25: комплет 1000 кVА (апроксимирано) | C25: 40 | D25: 40000 | E25: =C25*D25 -> 1600000 | F25: 5.2 | G25: Set 1000 kVA | H25: 40 | I25: 40000 | J25: =H25*I25 -> 1600000
B26: Вкупно: | E26: =SUM(E24:E25) -> 1680000 | J26: =SUM(J24:J25) -> 1680000
A27: 6 | B27: Откуп на земјиште за ТС | C27: 1 | D27: 300000 | E27: =C27*D27 -> 300000 | F27: 6 | G27: Land Acquisition for TS | H27: 1 | I27: 300000 | J27: =H27*I27 -> 300000
A28: =A27+1 -> 7 | B28: Постројка ТС 110/20 kV со 2 ДВ + 2 ТР+ Спојно полиња | F28: =F27+1 -> 7 | G28: Plant TS 110/20 kV with 2 DW + 2 TR + connection fields
A29: 7.1. | B29: Градежни работи парче | C29: 1 | D29: 814000 | E29: =C29*D29 -> 814000 | F29: 7.1. | G29: Construction - single | H29: 1 | I29: 814000 | J29: =H29*I29 -> 814000
A30: 7.2. | B30: 110 kV построение парче | C30: 5 | D30: 400000 | E30: =C30*D30 -> 2000000 | F30: 7.2. | G30: 110 kV construction, single | H30: 5 | I30: 400000 | J30: =H30*I30 -> 2000000
A31: 7.3. | B31: 20 kV построение парче | C31: 1 | D31: 200000 | E31: =C31*D31 -> 200000 | F31: 7.3. | G31: 20 kV construction, single | H31: 1 | I31: 200000 | J31: =H31*I31 -> 200000
A32: 7.4. | B32: НН инсталација, управување и релејна заштиа парче | C32: 1 | D32: 550000 | E32: =C32*D32 -> 550000 | F32: 7.4. | G32: NN installation, management and relay protection, single | H32: 1 | I32: 550000 | J32: =H32*I32 -> 550000
A33: 7.5. | B33: Eнергетски трансформатори 12,7 МVА (сервисирани) | C33: 2 | D33: 50000 | E33: =C33*D33 -> 100000 | F33: 7.5. | G33: Power transformers 12.7 MW (serviced) | H33: 2 | I33: 50000 | J33: =H33*I33 -> 100000
B34: Вкупно: | E34: =SUM(E29:E33) -> 3664000 | J34: =SUM(J29:J33) -> 3664000
E35: =E3+E10+E16+E22+E26+E27+E34 -> 11558000 | G35: TOTAL: | J35: =J3+J10+J16+J22+J26+J27+J34 -> 10058000
A37: 1 | B37: Закупуване на подстанцията | C37: 1 | D37: 500000 | E37: =C37*D37 -> 500000 | F37: 1 | G37: Purchase of the substation | H37: 1 | I37: 500000 | J37: =H37*I37 -> 500000
A38: 2 | B38: Фин. модел за проектно финансиране | C38: 1 | D38: 350000 | E38: =C38*D38 -> 350000 | F38: 2 | G38: Fin. Modeling for project finance | H38: 1 | I38: 360000 | J38: =H38*I38 -> 360000
B39: ВСЕ ВКУПНО: | D39: =SUM(D37:D38) -> 850000 | E39: =E3+E10+E16+E22+E26+E27+E34+E37+E38 -> 12408000 | G39: TOTAL: | J39: =J3+J10+J16+J22+J26+J27+J34+J37+J38 -> 10918000
